{"text_format":"1","workbook":"xlsx","n_sheets":14,"sheets":["Committee List","1-2554","2553-1","2553-2","2554-1","2554-2","2554-3","2554-4","2554-5","2554-6","Agenda","2556-1","Main","ใบรายชื่อ"],"not_rendered":{"charts":0,"images":0,"macros":1,"external_links":0,"defined_names":15,"comments":0,"pivot_tables":0},"unopened":[],"bounds":{"document_bytes":16777216,"sheet_cells":100000,"rows_first":2000,"rows_last":500,"rows_between":2000,"halvings":0,"cell_chars":16384,"cell_head_chars":4096},"cells_cut":0,"cells_raw":0,"read":"whole","date_system":"1900"}

{"sheet":"Committee List","index":0,"n_rows":14,"n_cols":8,"rows_kept":14,"cut":false,"hidden":false,"merged":[[1,0,3,1]]}
[null,"รายชื่อผู้เข้าประชุมกรรมการบริหารงานโครงการจัดตั้งสายวิชาเคมี"]
["รายชื่อผู้เข้าประชุม",null,"    /2555","    /2555","    /2555","    /2555","    /2555","     /2555"]
[null,null,"วันที่ ","วันที่ ","วันที่","วันที่","วันที่","วันที่"]
[null,null,"เวลา","เวลา","เวลา","เวลา","เวลา","เวลา"]
[1,"ประธานโครงการฯเคมี"]
[2,"รศ. จงรักษ์ แก้วประสิทธิ์"]
[3,"อ.นวลจันทร์ มัจฉริยกุล"]
[4,"ผู้ประสานฯเคมีเชิงฟิสิกส์"]
[5,"ผู้ประสานฯเคมีวิเคราะห์"]
[6,"ผู้ประสานฯเคมีอินทรีย์"]
[7,"ผู้ประสานฯเคมีอนินทรีย์"]
[8,"ผู้ประสานฯเคมีสิ่งแวดล้อม"]
[9,"ผู้ประสานฯเคมีพอลิเมอร์ฯ"]
[10,"อ.บุญเดช เบิกฟ้า"]

{"sheet":"1-2554","index":1,"n_rows":31,"n_cols":4,"rows_kept":31,"cut":false,"hidden":false,"merged":[[35,1,35,3],[38,2,38,3],[21,1,21,3],[24,1,24,3],[25,1,25,3],[29,1,29,3],[19,0,19,3],[0,0,0,3],[1,0,1,3],[2,0,2,3],[3,1,3,5]]}
["รายงานการประชุมคณะกรรมการบริหารโครงการจัดตั้งสายวิชาเคมี"]
["ครั้งที่ 1/2554  วันพฤหัสบดีที่ 20 มกราคม 2554"]
["ห้อง SC5-103 คณะศิลปศาสตร์และวิทยาศาสตร์"]
[null,"เวลา 16.30-19.45 น."]
["ผู้เข้าประชุม"]
[1,"อ.ดร.ปิติ ตรีสุกล","ประธานฯโครงการจัดตั้งสายวิชาเคมี"]
[2,"รศ.ดร.จงรักษ์ แก้วประสิทธิ์","รองประธาน"]
[3,"อ.นวลจันทร์ มัจฉริยกุล","กรรมการ"]
[4,"ผศ.ดร.ฐิติยา แซ่ปัง","กรรมการและรักษาการผู้ประสานงานสาขาเคมีสิ่งแวดล้อม"]
[5,"อ.ดร.วันเพ็ญ เหล่าศรีไพบูลย์","กรรมการและรักษาการผู้ประสานงานสาขาเคมีอินทรีย์"]
[6,"อ.ดร.วีนาวรรณ สมผล","กรรมการและรักษาการผู้ประสานงานสาขาเคมีอนินทรีย์"]
[7,"อ.ดร.กมลทิพย์ ขัตติยะวงศ์","กรรมการและรักษาการผู้ประสานงานสาขาเคมีพอลิเมอร์และเคมีอุตสาหกรรม"]
[8,"อ.ดร.อาทร ลอยสรวงสิน","กรรมการและรักษาการผู้ประสานงานสาขาเคมีเชิงฟิสิกส์"]
[9,"อ.วิไลลักษณ์ ขวัญยืน","กรรมการและรักษาการผู้ประสานงานสาขาเคมีวิเคราะห์"]
[10,"อ.ดร.วรางคณา จิตตชุ่ม","กรรมการและเลขานุการ"]
["ผู้เข้าร่วมประชุม"]
[1,"อ.ดร. บุญเดช เบิกฟ้า"]
[]
[]
["ครั้งที่ 2/2554 วันที่ 20 มกราคม 2554 เริ่มประชุมเวลา 16.30 น. ปิดประชุมเวลา 19.45 น."]
["วาระ","เรื่อง","รายละเอียด","มติของที่ประชุม"]
["วาระที่ 1","เรื่องแจ้งเพื่อทราบ"]
[1.1000000000000001,"การประชุมกรรมการบริหารจัดการ ศวท.","ประธานได้แจ้งข้อมูลจากการประชุมกรรมการบริหารจัดการ ศวท. ที่เกี่ยวข้องกับโครงการจัดตั้งสายวิชาเคมี ได้แก่\n1 คณะได้กำหนดวันประเมินคุณภาพหน่วยงานภายใน วันที่ 10-11 พ.ค. 54\n2 ความคืบหน้าของการเสนอจัดตั้งสายวิชาเคมี \n3 คณะจะจัดการอบรมด้าน ISO ให้กับนิสิตเก่า\n4 กิจการนิสิตรับสมัครนิสิตทุนทำงาน หมดเขต 2 ก.พ. 54","ที่ประชุมรับทราบ"]
[1.2,"การแต่งตั้งกรรมการและเลขานุการที่ประชุม","ตามที่ อ.วรางคณา ได้รับการแต่งตั้งเป็น หัวหน้า ศสวท. และได้ขออนุมัติลาออกจากการเป็นกรรมการและเลขานุการของคณะกรรมการบริหารโครงการจัดตั้งสายวิชาเคมี โดยประธานฯ จะได้แต่งตั้งให้ อ.บุญเดช เบิกฟ้า ทำหน้าที่แทนในตำแหน่งกรรมการและเลขานุการต่อไป","ที่ประชุมรับทราบ"]
["วาระที่ 2 ","รับรองรายงานการประชุม ครั้งที่ 2/2553 วันที่ 15 ธ.ค. 53"]
["วาระที่ 3","เรื่องเพื่อพิจารณา"]
[3.1,"รายละเอียดการสัมนาเคมี ปี 2554","ตามที่โครงการจัดตั้งสายวิชาเคมีได้รับอนุมัติงบประมาณสำหรับโครงการสัมนาเคมี ปี 2554 ในวงเงิน 100,000 บาท ประธานได้ให้ที่ประชุมพิจารณาถึงหัวข้อ กำหนดเวลา และสถานที่ สำหรับการสัมนา ที่ประชุมได้ลงความเห็นว่าให้ใช้รูปแบบเดิมคือมีการสัมนาในคณะต่อเนื่องกัน 3-4 ครั้ง ในฃ่วงภาคฤดูร้อน อาจมีการเชิญวิทยากรมาให้ความรู้ในหัวข้อทีเกี่ยวข้อง และจะสรุปเนื้อหาทั้งหมดโดยจัดประชุมนอกสถานที่ ","ที่ประชุมมีมติให้กรรมการพิจารณาเสนอหัวข้อการสัมนา รายชื่อวิทยากรและสถานที่ในการจัดสัมนานอกสถานที่ และส่งให้เลขา ภายในวันที่ 27 ม.ค. 54 "]
[3.2,"ประมาณการรายได้ ปี 2555","ประธานได้ชี้แจงข้อมูลเบื้องต้นจากการประมาณรายรับ ปี 2555 จากค่าหน่วยกิตของรายวิชาปกติและจากโครงการหลักสูตรวิศวกรรมภาคพิเศษ จากข้อมูลที่ได้รับจากรักษาการผู้ประสานงานสาขา โดยให้กรรมการช่วยพิจารณาความถูกต้องของข้อมูล ","มีบางรายวิชาที่ยังไม่ครบถ้วน รักษาการผู้ประสานงานสาขาจะได้รวบรวมส่งข้อมูลที่ประธานเพื่อพิจารณาอีกครั้งในการประชุมครั้งต่อไป"]
[3.3,"การแบ่งงานและหน้าที่รับผิดชอบฝ่ายต่าง ๆ","ประธานเสนอให้ที่ประชุมพิจารณาการดำเนินงานเกี่ยวกับความปลอดภัยในห้องปฏิบัติการและการเรียนการสอนด้านปฏิบัติการ ที่ประชุมได้อภิปรายถึงรูปแบบการดำเนินงาน ที่เหมาะสม ","ที่ประชุมให้ประธานรวบรวมข้อเสนอแนะเกี่ยวกับความปลอดภัยในห้องปฏิบัติการและเสนอรูปแบบการดำเนินงานที่เหมาะสมในครั้งต่อไป"]
["วาระที่ 4","เรื่องสืบเนื่อง"]
[4.0999999999999996,"แผนงบประมาณรายได้ ปี 2555","สืบเนื่องประชุม กก.บริหาร 2553/2 เรื่องการเสนอแผนการใช้เงินงบประมาณรายได้ ประธานได้มอบหมายให้แต่ละสาขาเสนอรายการครุภัณฑ์และโครงการที่เกี่ยวข้องกับสาขาหรือฝ่ายของตน เพื่อรวบรวมและพิจารณาในครั้งต่อไป","ให้เสนอโครงการและครุภัณฑ์ที่เกี่ยวข้องโดยส่งที่ อ.บุญเดช ภายในวันที่ 27 ม.ค. 54 และนำเสนอต่อที่ประชุมในครั้งต่อไป"]

{"sheet":"2553-1","index":2,"n_rows":31,"n_cols":4,"rows_kept":31,"cut":false,"hidden":false,"merged":[[21,1,21,3],[0,0,0,3],[1,0,1,3],[2,0,2,3],[3,0,3,3],[15,0,15,3],[17,1,17,3]]}
["รายงานการประชุมคณะกรรมการบริหารโครงการจัดตั้งสายวิชาเคมี"]
["ครั้งที่ 2/2554  วันพฤหัสบดีที่ 4 พฤศจิกายน 2553"]
["ห้อง SC5-103 คณะศิลปศาสตร์และวิทยาศาสตร์"]
["เวลา 16.30-18.30 น."]
["ผู้เข้าประชุม"]
[1,"อ.ดร.ปิติ ตรีสุกล","ประธานฯโครงการจัดตั้งสายวิชาเคมี"]
[2,"รศ.ดร.จงรักษ์ แก้วประสิทธิ์","รองประธาน"]
[3,"อ.วิไลลักษณ์ ขวัญยืน","กรรมการและรักษาการผู้ประสานงานสาขาเคมีวิเคราะห์"]
[4,"ผศ.ดร.ฐิติยา แซ่ปัง","กรรมการและรักษาการผู้ประสานงานสาขาเคมีสิ่งแวดล้อม"]
[5,"อ.ดร.วันเพ็ญ เหล่าศรีไพบูลย์","กรรมการและรักษาการผู้ประสานงานสาขาเคมีอินทรีย์"]
[6,"อ.ดร.วีนาวรรณ สมผล","กรรมการและรักษาการผู้ประสานงานสาขาเคมีอนินทรีย์"]
[7,"อ.ดร.กมลทิพย์ ขัตติยะวงศ์","กรรมการและรักษาการผู้ประสานงานสาขาเคมีพอลิเมอร์และเคมีอุตสาหกรรม"]
[8,"อ.ดร.อาทร ลอยสรวงสิน","กรรมการและรักษาการผู้ประสานงานสาขาเคมีเชิงฟิสิกส์"]
[9,"อ.ดร.บุญเดช เบิกฟ้า","กรรมการและเลขานุการ"]
[]
["ครั้งที่ 1/2553 วันที่ 4 พฤศจิกายน 2553 เริ่มประชุมเวลา 16.30 น. ปิดประชุมเวลา 18.30 น. รับรองรายงานการประชุม วันที่ x ธันวาคม 2553"]
["วาระ","เรื่อง","รายละเอียด","มติของที่ประชุม"]
["วาระที่ 1","เรื่องแจ้งเพื่อทราบ"]
[1.1000000000000001,"เสนอแต่งตั้งคณะกรรมการบริหารโครงการฯ","ประธานได้เสนอแต่งตั้งคณะกรรมการบริหารชุดเดิม","รับทราบ"]
[1.2,"ผลการจัดการประชุม TS2C2","ประธานแจ้งผลการดำเนินงานการอบรมซึ่งประกอบด้วย วิทยาการ 8 คน ผู้ช่วยวิทยากร 5 คน ผู้เข้าร่วมประชุม ~ 120 คน (นับผู้ที่เข้าร่วมอย่างน้อย 1 ครั้ง) มีนิสิตช่วยงาน 39 คน\nมีผู้ตอบแบบสอบถามรวม 51 คน ผลการประเมินเฉลี่ยอยู่ในระดับ พึงพอใจมาก โดยหากแยกเป็นกลุ่มจะพบว่ากลุ่มอาจารย์ และนิสิตป.ตรี อยู่ในระดับพึงพอใจมากที่สุด และ กลุ่มนิสิตระดับบัณฑิตศึกษาอยู่ในระดับพึงพอใจมาก การจัดการอบรมในปีต่อไปจะมีภาควิชาเคมี มช.เป็นเจ้าภาพ","รับทราบ"]
[1.3,"รายวิชาเคมีพื้นฐานที่จะเปิดในภาคฤดูร้อน 2554","ประธานแจ้งมติที่ประชุมคณาจารย์เกี่ยวกับการจัดการเรียนการสอนรายวิชาพื้นฐาน 01403111 01403113 01403115 01403117 01403221 ซึ่งจะเปิดการเรียนการสอนในภาคฤดูร้อนเพิ่ม โดยมีเงื่อนไขว่าต้องมีจำนวนผู้ลงทะเบียนตามเกณฑ์ขั้นต่ำของมหาวิทยาลัย","รับทราบ"]
["วาระที่ 2","เรื่องเพื่อพิจารณา"]
[2.1,"การจัดการเรียนการสอนวิชาในสาขาเคมี","ประธานขอให้แต่ละสาขาพิจารณาถึงปัญหาของนิสิตในรายวิชาต่าง ๆ รวมถึงแนวทางเป็นไปได้ในการช่วยเหลือและผลักดันให้นิสิตเคมีมีคุณภาพ ทั้งนี้ปัญหาที่จักทำการรวบรวมนั้นรวมถึงปัญหาที่เกิดในห้องเรียน การจัดการเรียนการสอน ความพร้อมของอุปกรณ์ด้วย","มีมติให้ผู้ประสานงานสาขารวบรวมข้อมูลและส่งให้เลขานุการภายในวันศุกร์ที่ 12 พฤศจิกายน 2553"]
[2.2000000000000002,"การเปิดรายวิชาเลือกสำหรับนิสิตในหลักสูตร","ประธานมอบหมายให้แต่ละสาขาพิจารณาถึงวิชาที่มีความเหมาะสม เป็นประโยชน์ต่อการเรียนต่อหรือไปปฏิบัติงาน รวมถึงพิจารณาถึงการให้คำแนะนำนิสิตในหลักสูตรในการเลือกวิชาเลือกในด้านที่สนใจ นอกจากนี้ ผศ.ฐิติยา แซ่ปัง ได้ให้ข้อมูลเพิ่มเติมเกี่ยวกับรายวิชาพิษวิทยาสิ่งแวดล้อม ซึ่งเดิมเป็นของหลักสูตร วท.บ.ทั่วไป แต่หลังจากการปิดหลักสูตรนี้แล้ว รายวิชานี้จะเป็นรายวิชาในความดูและของโครงการจัดตั้งสายวิชาเคมี และจะจัดการเรียนการสอนในภาคปลาย ซึ่งวิชานี้สำหรับนิสิตเคมีจัดเป็นรายวิชาในหมวดเลือกเสรี","มีมติให้ผู้ประสานงานสาขาประสานงานกับอาจารย์ในสาขาพิจารณาวิชาตัวเลือกที่จะเปิดการเรียนการสอนได้ทั้งในภาคต้นละภาคปลายและส่งข้อมูลดังกล่าวให้เลขานุการภายในวันศุกร์ที่ 12 พฤศจิการยน 2553 "]
[2.2999999999999998,"การจัดการเรียนการสอนวิชาปัญหาพิเศษ\n","ประธานขอความคิดเห็นเกี่ยวกับการจัดการรายวิชาปัญหาพิเศษ ตั้งแต่ขั้นตอนในการรับนิสิตในที่ปรึกษา การตั้งคณะกรรมการพิจารณา Proposal การสนับสนุนค่าใช้จ่ายและเกณฑ์ในการประเมินผล","อ.วิไลลักษณ์ ขวัญยืน ขอรับไปร่างแนวทางการจัดการและจะนำเข้าที่ประชุมเพื่อพิจารณาในภายหลัง"]
[2.4,"การพิจารณาเงินสนับสนุนการทำปัญหาพิเศษ","ประธานให้ข้อมูลว่า ณ ปัจจุบัน นิสิตทำปัญหาพิเศษจะได้เงินสนับสนุนคนละ 2000 บาทจากกองทุนพัฒนานิสิต ในส่วนของโครงการจัดตั้งฯไม่ได้ตั้งงบสนับสนุนในปีนี้ (ส่วนปีที่ผ่านมาให้ 2000 บาท/คน) ดังนั้นในปีนี้ทางโครงการจัดตั้งฯจะมีการพิจารณาเงินส่วนอื่น เช่นเงินภาคพิเศษเพื่อสนับสนุนในส่วนนี้หรือไม่\n","ที่ประชุมมีมติให้เงินสนับสนุนเพิ่มอีกคนละ 2000 บาท โดยใช้เงินรายได้จากภาคพิเศษ ดังนั้นในรายวิชาปัญหาพิเศษนิสิตจะมีเงินสนับสนุคนละ 4000 บาท โดยเป็นค่าสารเคมีเพียงอย่างเดียว ไม่รวมค่าเครื่องแก้ว นอกจากนี้ที่ประชุมยังลงมติให้มีการคิดค่าสารเคมีเมื่อนิสิตมาเบิกจากส่วนกลางและหักจากเงิน 4000 บาทที่ได้รับจัดสรร"]
[2.5,"การขอรับการสนับสนุนค่าทำปัญหาพิเศษเพิ่มเติมสำหรับนิสิตในความดูแลของ อ.พิเชษฐ อนุรักษ์อุดม ","ประธานแจ้งที่ประชุมว่า อ.พิเชษฐ อนุรักษ์อุดม ได้เบิกค่าสารเคมีสำหรับนิสิตปัญหาพิเศษ (รวม 6 คน) ไปแล้ว 12187.30 บาท และต้องการเบิกค่าสารเคมีเพิ่มเติมอีก 39097.80 บาท หรือหากไม่ได้ จะขอรับการสนับสนุนบางส่วนเป็นเงินประมาณ 9000 บาท","ที่ประชุมมีมติให้พิจารณาวงเงินปัญหาพิเศษของ อ.พิเชษฐ ที่มีทั้งสิ้น 24000 บาท (6 คน * 4000 บาท/คน) ดังนั้นอาจารย์เหลือเงินในส่วนนี้ 24000-12187.3 = 11812.7 บาท ซึ่งจะนำมาสนับสนุนค่าใช้จ่ายต่อไป"]
[2.6,"แนวทางเยียวยานิสิตที่ครอบครัวประสบปัญหาน้ำท่วม","ประธานขอหารือแนวทาง/ความเป็นไปได้ในการให้ความช่วยเหลือนิสิตในหลักสูตรที่ประสบปัญหา นอกเหนือจากที่คณะดำเนินการ เช่นการให้ทุนฉุกเฉินหรือการให้ยืมเงิน","ที่ประชุมมีมติให้ทางโครงการจัดตั้งฯติดประกาศ และนำรายชื่อที่ได้ เสนอฝ่ายกิจการนิสิตของคณะฯให้ความช่วยเหลืออย่างเร่งด่วนต่อไป"]
[2.7,"แต่งตั้งกรรมการเพิ่มเติมเพื่อดูแลด้านงบประมาณและการใช้เงิน","ประธานขอหารือที่ประชุมแต่งตั้งบุคคลทำหน้าที่โดยตรงในการตรวจสอบการใช้งบประมาณของโครงการฯ เพื่อการดำเนินงานที่สะดวกและคล่องตัว","ที่ประชุมมีมติทาบทาม อ.นวลจันทร์ มัจฉริยกุล เป็นรองประธานโครงการจัดตั้งฯ (คนที่ 2) ดูแลด้านการเงินของโครงการจัดตั้งฯ และเป็นที่ปรึกษาการจัดการรายวิชาพื้นฐาน ในส่วนงานของ รศ.จงรักษ์ แก้วประสิทธิ์ จะทำหน้าที่รองประธานคนที่ 1 ดูแลงานด้านนโยบายและแผนของโครงการจัดตั้งฯ "]
[2.8,"โครงการที่ตอบสนองแผนยุทธศาสตร์คณะ","ประธานขอให้แต่ละสาขาพิจารณาโครงการที่ตอบสนองต่อกลยุทธ์ของแผนยุทธศาสตร์คณะ เพื่อเสนอในการประชาพิจารณ์","ที่ประชุมมีมติให้ประธานโครงการจัดตั้งฯ ร่วมด้วย อ.นวลจันทร์ และ อ.วรางคณา พิจารณาโครงการและนำเสนอในที่ประชุมประชาพิจารณ์ต่อไป"]
[2.9,"การจัดงานโครงการสัมมาทิฐิ","ประธานแจ้งที่ประชุมถึงโครงการงบเงินรายได้ ปี 2554 \"โครงการสัมมาทิฐิ\" งบประมาณ 40,000 บาท เพื่อพิจารณาวันที่เหมาะสมและแต่งตั้งคณะทำงาน โดยรูปแบบงานปีที่แล้วเป็นการทำความสะอาดห้องปฏิบัติการรวมถึงการปลูกต้นไม้ในช่วงเช้า ส่วนในช่วงเย็นเป็นการจัดเลี้ยงโต๊ะจีนให้แก่บุคคลากรและนิสิตทุกชั้นปีรับประทานอาหารร่วมกัน ","ที่ประชุมมีมติให้ทาบทาม อ.พจมาลย์ พูลมีเป็นประธานคณะทำงาน อ.สุนันท์ ทิพย์ทิพากร เป็นรองประธาน และ อ.บุญเดช เบิกฟ้า เป็นเลขานุการ โดยมอบหมายให้คณะทำงานชุดนี้กำหนดรูปแบบกิจกรรม วัน เวลา และสถานที่ และนำเข้าที่ประชุมเพื่อพิจารณาในครั้งต่อไป"]

{"sheet":"2553-2","index":3,"n_rows":40,"n_cols":4,"rows_kept":40,"cut":false,"hidden":false,"merged":[[19,1,19,3],[0,0,0,3],[1,0,1,3],[2,0,2,3],[3,0,3,3],[17,0,17,3],[24,1,24,3],[26,1,26,3],[32,1,32,3],[34,1,34,3],[25,1,25,2]]}
["รายงานการประชุมคณะกรรมการบริหารโครงการจัดตั้งสายวิชาเคมี"]
["ครั้งที่ 2/2553  วันพฤหัสบดีที่ 15 ธันวาคม 2553"]
["ห้อง SC5-103 คณะศิลปศาสตร์และวิทยาศาสตร์"]
["เวลา 18.30-19.45 น."]
["ผู้เข้าประชุม"]
[1,"อ.ดร.ปิติ ตรีสุกล","ประธานฯโครงการจัดตั้งสายวิชาเคมี"]
[1,"รศ.ดร.จงรักษ์ แก้วประสิทธิ์","รองประธาน"]
[2,"อ.นวลจันทร์ มัจฉริยกุล","กรรมการ"]
[2,"อ.วิไลลักษณ์ ขวัญยืน","กรรมการและรักษาการผู้ประสานงานสาขาเคมีวิเคราะห์"]
[3,"ผศ.ดร.ฐิติยา แซ่ปัง","กรรมการและรักษาการผู้ประสานงานสาขาเคมีสิ่งแวดล้อม"]
[4,"อ.ดร.วันเพ็ญ เหล่าศรีไพบูลย์","กรรมการและรักษาการผู้ประสานงานสาขาเคมีอินทรีย์"]
[5,"อ.ดร.วีนาวรรณ สมผล","กรรมการและรักษาการผู้ประสานงานสาขาเคมีอนินทรีย์"]
[6,"อ.ดร.กมลทิพย์ ขัตติยะวงศ์","กรรมการและรักษาการผู้ประสานงานสาขาเคมีพอลิเมอร์และเคมีอุตสาหกรรม"]
[7,"อ.ดร.อาทร ลอยสรวงสิน","กรรมการและรักษาการผู้ประสานงานสาขาเคมีเชิงฟิสิกส์"]
[8,"อ.ดร.บุญเดช เบิกฟ้า","กรรมการและเลขานุการ"]
["ผู้ไม่เข้าประชุม"]
[]
["ครั้งที่ 2/2553 วันที่ 15 ธันวาคม 2553 เริ่มประชุมเวลา 18.30 น. ปิดประชุมเวลา 19.45 น. รับรองรายงานการประชุม วันที่ X ม.ค. 54"]
["วาระ","เรื่อง","รายละเอียด","มติของที่ประชุม"]
["วาระที่ 1","เรื่องแจ้งเพื่อทราบ"]
[1.1000000000000001,"ผลการดำเนินงานกิจกรรมในงานเกษตร กพส. ","ประธานและ ผศ. ฐิติยา สรุปภาพรวมของกิจกรรมของโครงการฯในงานเกษตรกำแพงแสน\n1 กิจกรรมตอบปัญหาเคมี งานเกษตรกำแพงแสน ปี 2553 มีผู้เข้าร่วมตอบปัญหารวม 43 ทีม ภาพรวมของโครงการประสบความสำเร็จและมีผู้เข้าร่วมกิจกรรมมากที่สุด ข้อเสนอแนะ ต้องปรับปรุงเรื่องการประชาสัมพันธ์โครงการ\n2 กิจกรรมนิสิตเคมีคือ เทียนเจล ไบโอดีเซล และ CSI (paper chromatograpy) \n3 โครงการฯได้จัดทำเสื้อยืดและตารางธาตุเพื่อประชาสัมพันธ์หลักสูตร ","รับทราบ"]
[1.2,"ความคืบหน้าเรื่องการขอใช้หลักสูตร วท.ม. เคมี (ปรับปรุงใหม่)","ประธานแจ้งว่าหลักสูตร วท.ม. (เคมี) ฉบับปรับปรุงใหม่ผ่านการอนุมัติแล้ว โครงการฯได้ขอให้คณบดีทำหนังสือเพื่อขอหลักสูตร วท.ม. (เคมี) ฉบับปรับปรุงใหม่จากคณะวิทยาศาสตร์  ประธานได้สอบถามความพร้อมในการเปิดหลักสูตร โดยให้รักษาการผู้ประสานงานสาขาเคมีอินทรีย์และเคมีเชิงฟิสิกส์ ทำการสอบถามบุคลากรเพื่อดูความพร้อมเพื่อจะได้แจ้งกับมหาวิทยาลัยเพื่อเปิดรับนิสิตต่อไป รองประธานเสนอว่าสามารถขอหลักสูตรจากกองบริการการศึกษาได้โดยตรง และ ควรทำลิงก์ไปยังหลักสูตรของภาควิชาเคมี\nรองประธานเสนอว่า หลักสูตร วท.บ. (เคมี) ครบกำหนดปรับปรุงปี 52 หากภาควิชาเคมีทำการปรับปรุงหลักสูตรเสร็จ โครงการฯจะต้องทำหนังสือถึงคณะกรรมการการศึกษาเพื่อขอใช้หลักสูตรปรับปรุงใหม่ด้วย","รับทราบ"]
[1.3,"การเปิดรายวิชาในภาคฤดูร้อน"," โครงการจัดตั้งสายวิชาเคมี จะดำเนินการเปิดรายวิชาในภาคฤดูร้อนรวม 6 รายวิชา คือ 01403111 (300 คน) 01403113 (100 คน) 01403115 (50 คน) 01403117 (300 คน) 01403221 (300 คน) โดยวิชา 4 หน่วยกิต เวลา9:00-12:00 จันทร์-ศุกร์ (ภาคพิเศษ) 15:00-18:00 จันทร์-ศุกร์ และวิชา 3 หน่วยกิต 10:00-12:00 จันทร์-ศุกร์ เวลา (ภาคพิเศษ) 15:00-17:00 จันทร์-ศุกร์ โดยมีเงื่อนไขการรับลงทะเบียนคือจะเปิดให้ทุกชั้นปีลงทะเบียนพร้อมกัน และปิดรับเมื่อครบตามจำนวน ตามมติจากที่ประชุมคณาจารย์เคมี (วาระพิเศษ ปี2553) ","รับทราบ"]
[1.4,"ประกาศคณะศวท.เรื่องการให้รางวัลกับอาจารย์ ปีงบประมาร 54-55","ตามที่มีประกาศของคณะเรื่องการให้รางวัลกับอาจารย์ที่จัดทำเนื้อหาบทเรียน e-learning วิชาละ 3000 บาท รองประธานเสนอว่าวิชาที่มีสื่อการสอนอยู่แล้ว ให้ผู้จัดการวิชา(ในกรณีที่มีผู้ร่วมทำหลายคน) หรือเจ้าของวิชา ทำเรื่องเสนอเพื่อขอรับรางวัล บทเรียน e-learning โดยนำเงินที่ได้มาใช้ในพัฒนาการเรียนการสอนหรือทำกิจกรรมในโครงการฯ ","รับทราบ"]
["วาระที่ 2","รับรองรายงานการประชุม ครั้งที่ 1 / 2553 วันที่ 4 พ.ย. 2553"]
[null,"1 เนื่องจากการประชุมครั้งที่ 1 ยังไม่ได้รับคำสั่งแต่งตั้งรองประธานจึงเสนอให้เปลี่ยนเป็นบันทึกช่วยจำแทน รายงานการประชุม\n2 ผู้มาประชุม เพิ่ม นส. วรางคณา จิตตชุ่ม",null,"รับรองรายงานการประชุม"]
["วาระที่ 3","เรื่องเพื่อพิจารณา"]
[3.1,"พิจารณา เวลา/สถานที่ สำหรับการประชุมคณะกรรมการบริหารโครงการฯ ","ประธานเสนอให้กำหนดประชุม กก.บริหาร ทุกวันพฤหัส ที่หนึ่งของเดือน เวลา 16:30-18:00 น. และเสนอให้กำหนดวันประชุมคณาจารย์เลยเป็นทุกวันอังคารที่สามของเดือน เวลา 12:00-13:00 น. โดยจะเวียนถามความเห็นของคณาจารย์อีกครั้ง","มีมติเห็นชอบ"]
[3.2,"เตรียมแผนสำหรับงบประมาณรายได้และงบประมาณแผ่นดิน ปี 2555","ประธานได้เสนอให้แต่ละสาขาช่วยกันพิจารณาแผนการใช้งบประมาณแผ่นดินและงบรายได้ ปี 2555 โดยส่งข้อมูลกลับที่ประธานเพื่อนำเข้าพิจารณาในครั้งต่อไป","มีมติเห็นชอบ"]
[3.3,"พิจารณาเงินรายได้โครงการวิศวกรรมศาสตร์ (ภาคพิเศษ) ","ประธานนำเสนอข้อมูลจากการประชุมคณะกรรมการบริหารการจัดการเรียนสอนโครงการภาคพิเศษ(1/2553 วันที่ 7 ธ.ค. 53) ซึ่งมี อ.นวลจันทร์เข้าประชุมแทน (เอกสารหมายเลข 2) สรุปเงินโครงการภาคพิเศษย้อนหลังในช่วงปี 2544-2552 จากข้อมูลพบว่ารายได้ภาคพิเศษ 1 ภาคต้นปี 2546-48 และภาคพิเศษ 2 ภาคต้นปี 2547-48 และโครงการธนาคารหน่วยกิต ปี 2552 (อ.พจมาลย์เป็นผู้สอน) หายไป กรรมการได้ร่วมกันตรวจสอบข้อมูลและได้เสนอให้ตรวจสอบข้อมูลของวิศวะภาคพิเศษ 1 ภาคฤดูร้อนปี 48-49 และโครงการธนาคารหน่วยกิตปี 2552 ","มีมติให้ตรวจสอบข้อมูลการลงทะเบียนของภาคการศึกษาที่ไม่มีข้อมูลโดยให้ตรวจสอบจากใบกรอกเกรด โดยประธานจะตรวจสอบให้"]
[3.4,"ข้อชี้แจงเกี่ยวกับคำร้องเรียนเรื่องการจัดการเรียนการสอนวิชาเคมีพื้นฐาน","ประธานได้แจ้งว่ามีผู้ร้องเรียนถึงรัฐมนตรีช่วยว่าการก.ศึกษาธิการ เกี่ยวกับการจัดการเรียนการสอนวิชาเคมีพื้นฐาน ที่วิทยาเขตกำแพงแสน รองคณบดีฝ่ายวิชาการได้เชิญผู้จัดการวิชา 01403111 และ 01403113 ไปชี้แจงข้อมูล (เอกสารหมายเลข 3) ประธานได้ทำหนังสือชี้แจงข้อมูลเพิ่มเติมเพื่อชี้แจงต่อมหาวิทยาลัย และได้ให้ที่ประชุมร่วมพิจารณาประเด็นต่าง ๆ ที่ประชุมมีข้อเสนอแนะให้เพิ่มเติมรายละเอียดดังนี้ \n1 ประเด็นชื่อวิชา \n2 สัดส่วนของจำนวนนิสิตชั้นปี 1 ต่อปีอื่น\n3 อ้างอิงข้อมูลเชิงสถิติเกี่ยวกับการถอนรายวิชาของวิชาอื่นจากเว็บไซต์มหาวิทยาลัย\n4 ไม่ต้องใส่ข้อมูลเกณฑ์การตัดเกรดในปี 53\n5 กรณีที่นิสิตที่มีข้อสงสัยเกี่ยวกับการจัดการเรียนการสอนสามารถสอบถามได้โดยตรง\nรองประธานเสอนว่าน่าจะมีการพิจารณาแต่งตั้งคณะกรรมการจัดทำข้อสอบมาตรฐาน","มีมติให้ปรับแก้ข้อมูลในการชี้แจงบางส่วนเพื่อให้มีความชัดเจนมากขึ้น และนำเสนอต่อคณะต่อไป"]
[3.5,"ห้องปฏิบัติการแก้ววิทยาศาสตร์และงานแก้วศิลป์","ประธานแจ้งว่ารักษาการ หน. ศสวท. ทำบันทึกข้อความมอบให้ห้องปฏิบัติการแก้ววิทยาศาสตร์และงานแก้วศิลปะให้อยู่ในความดูแลของโครงการฯเคมี โดยให้ที่ประชุมพิจารณาความเหมาะสม ที่ประชุมได้สอบถามถึงรายละเอียดและขอบเขตหน้าที่/ความรับผิดชอบของโครงการฯ การจัดสรรงบประมาณ การประกันคุณภาพ ผลงานและรายได้ที่จะเกิดขึ้น กรรมการได้ให้ข้อมูลว่ารองหน.ศสวท ได้เคยแจ้งการมอบห้องปฏิบัติการฯ ให้อยู่ในความดูแลของเคมีมาก่อนหน้านี้ แต่ยังไม่เคยมีการชี้แจงข้อสงสัยเหล่านี้","มีมติให้สอบถามรายละเอียดเพิ่มเติมจาก รักษาการหัวหน้า ศสวท. และนำเสนออีกครั้ง"]
["วาระที่ 4 ","เรื่องสืบเนื่อง"]
[4.0999999999999996,"ติดตามความคืบเนื่องเกี่ยวกับการจัดการเรียนการสอน","ประธานได้มอบหมายให้รักษาการผู้ประสานงานนำเสนอปัญหา แนวทางการพัฒนาการเรียนรู้ และรายวิชาที่จะเปิดเพิ่มเติม \nประธานเสนอว่าให้มีการแต่งตั้งคณะทำงานเพื่อพิจารณาการเรียนการสอนวิชาปฏิบัติการ ซึ่งรวมถึงวิชาปัญหาพิเศษ โดยพิจารณาข้อปฏิบัติพื้นฐาน ความปลอดภัย อ.วิไลลักษณ์ เสนอให้เน้นเรื่องการบันทึกข้อมูลและทำรายงานทางวิทยศาสตร์ อ.กมลทิพย์แจ้งว่ามีซีดีฐานข้อมูลสารเคมีซึ่งได้จากคณะกรรมการความปลอดภัยของเคมี อ.ฐิติยาแจ้งว่าจะช่วยหาข้อมูลของสารเคมีให้","ที่ประชุมมีมติให้แต่ละฝ่ายที่เกี่ยวข้องรวบรวมข้อมูลเพื่อเสนอต่อประธาน เพื่อนำเข้าพิจารณาในครั้งต่อ ๆ ไป"]
["วาระที่ 5 ","เรื่องอื่น ๆ"]
[5.0999999999999996,"ผลการวิจัยสถาบันเรื่อง การศึกษาความเป็นไปได้การเปิดสอนหลักสูตร เคมีศึกษา โดยอ.พจมาลย์ ","อ.พจมาลย์เสนอข้อมูลที่ได้จากการวิจัยสถาบันเรื่องความเป็นไปได้ในการเปิดหลักสูตร วท.ม.(เคมีศึกษา) เพื่อให้ที่ประชุมพิจารณา ","ที่ประชุมมีมติให้ อ.พจมาลย์ สรุปผลที่ได้จากการศึกษาเพื่อนำเสนอในที่ประชุมอีกครั้ง"]
[5.2,"ทุนอบรมด้าน nutrition  ที่ประเทศอิสราเอล","ประธานแจ้งประชาสัมพันธ์ทุนอบรมระยะสั้นด้าน Nutrition ที่ประเทศอิสราเอล ประธานได้เสนอให้อาจารย์ที่สนใจพิจารณาเพื่อสมัครรับทุนเพื่อรองรับการเรียนการสอนด้านเคมีอาหารของสาขาในอนาคต","ที่ประชุมรับทราบ"]
[5.3,"กรรมการสัมภาษณ์รับนิสิตใหม่","ประธานบริหารหลักสูตร วท.บ.เคมีได้แจ้งว่าจะเสนอชื่อ อ.วิไลลักษณ์ และ อ.บุญเดช เป็นกรรมการสอบสัมภาษณ์รับนิสิตใหม่ โควต้ารับตรง รวม 10 คน วันที่ 10 และ 14 ม.ค. 2554 และ โควต้าเด็กดีมีคุณธรรม รวม 18 คน วันที่ 13 ม.ค. และ 7 ก.พ. 2554  ","ที่ประชุมรับทราบ"]
[5.5,"การรับโอนรายวิชาในหลักสูตร วท.บ. (วิทยาศาสตร์ทั่วไป)","ผศ.ฐิติยาได้แจ้งว่า ภาควิชาวิทยาศาสตร์พื้นพิภพ โอนรายวิชา 404484 พิษวิทยาสิ่งแวดล้อม และ 01404491 วิธีวิจัยทางวิทยาศาสตร์ ให้คณะศวท. โดยที่ประชุม กก.วิชาการได้มอบให้อยู่ในความดูแลของโครงการฯเคมี ที่ประชุมได้พิจารณาและมอบหมายให้ อ.ฐิติยาและ อ.วิไลลักษณ์เป็นผู้รับผิดชอบรายวิชาทั้งสอง และให้พิจารณาถึงการปรับปรุงรายวิชาและเปลี่ยนรหัสวิชาตามความเหมาะสม ","มีมติเห็นชอบ"]
[5.6,"โครงการสัมมาทิฐิ","อ.วีนาวรรณ แจ้งกำหนดการจัดโครงการสัมมาทิฐิ ซึ่งจะจัดในวันที่ 26 ธันวาคม 2553 โดยกิจกรรมประกอบด้วยการแข่งกีฬาที่สนามหน้าตึก 5 เวลา 15:00-17:30 และจัดเลี้ยงโต๊ะจีนที่ลานหน้าลิฟต์ เวลา 18.30 น.","ที่ประชุมรับทราบ"]

{"sheet":"2554-1","index":4,"n_rows":29,"n_cols":4,"rows_kept":29,"cut":false,"hidden":false,"merged":[[19,1,19,3],[22,1,22,3],[23,1,23,3],[27,1,27,3],[0,0,0,3],[1,0,1,3],[2,0,2,3],[3,0,3,3],[17,0,17,3]]}
["รายงานการประชุมคณะกรรมการบริหารโครงการจัดตั้งสายวิชาเคมี"]
["ครั้งที่ 1/2554  วันพฤหัสบดีที่ 20 มกราคม 2554"]
["ห้อง SC5-103 คณะศิลปศาสตร์และวิทยาศาสตร์"]
["เวลา 16.30-19.45 น."]
["ผู้เข้าประชุม"]
[1,"อ.ดร.ปิติ ตรีสุกล","ประธานฯโครงการจัดตั้งสายวิชาเคมี"]
[1,"รศ.ดร.จงรักษ์ แก้วประสิทธิ์","รองประธาน"]
[2,"อ.นวลจันทร์ มัจฉริยกุล","กรรมการ"]
[2,"อ.วิไลลักษณ์ ขวัญยืน","กรรมการและรักษาการผู้ประสานงานสาขาเคมีวิเคราะห์"]
[3,"ผศ.ดร.ฐิติยา แซ่ปัง","กรรมการและรักษาการผู้ประสานงานสาขาเคมีสิ่งแวดล้อม"]
[4,"อ.ดร.วันเพ็ญ เหล่าศรีไพบูลย์","กรรมการและรักษาการผู้ประสานงานสาขาเคมีอินทรีย์"]
[5,"อ.ดร.วีนาวรรณ สมผล","กรรมการและรักษาการผู้ประสานงานสาขาเคมีอนินทรีย์"]
[6,"อ.ดร.กมลทิพย์ ขัตติยะวงศ์","กรรมการและรักษาการผู้ประสานงานสาขาเคมีพอลิเมอร์และเคมีอุตสาหกรรม"]
[7,"อ.ดร.อาทร ลอยสรวงสิน","กรรมการและรักษาการผู้ประสานงานสาขาเคมีเชิงฟิสิกส์"]
[8,"อ.ดร.บุญเดช เบิกฟ้า","กรรมการและเลขานุการ"]
["ผู้ไม่เข้าประชุม"]
[]
["ครั้งที่ 1/2554 วันที่ 20 มกราคม 2554 เริ่มประชุมเวลา 16.30 น. ปิดประชุมเวลา 19.45 น. รับรองรายงานการประชุม วันที่ x ก.พ. 2554"]
["วาระ","เรื่อง","รายละเอียด","มติของที่ประชุม"]
["วาระที่ 1","เรื่องแจ้งเพื่อทราบ"]
[1.1000000000000001,"การประชุมกรรมการบริหารจัดการ ศวท.","ประธานได้แจ้งข้อมูลจากการประชุมกรรมการบริหารจัดการ ศวท. ที่เกี่ยวข้องกับโครงการจัดตั้งสายวิชาเคมี ได้แก่\n1 คณะได้กำหนดวันประเมินคุณภาพหน่วยงานภายใน วันที่ 10-11 พ.ค. 54\n2 ความคืบหน้าของการเสนอจัดตั้งสายวิชาเคมี \n3 คณะจะจัดการอบรมด้าน ISO ให้กับนิสิตเก่า\n4 กิจการนิสิตรับสมัครนิสิตทุนทำงาน หมดเขต 2 ก.พ. 54","ที่ประชุมรับทราบ"]
[1.2,"การแต่งตั้งกรรมการและเลขานุการที่ประชุม","ตามที่ อ.วรางคณา ได้รับการแต่งตั้งเป็น หัวหน้า ศสวท. และได้ขออนุมัติลาออกจากการเป็นกรรมการและเลขานุการของคณะกรรมการบริหารโครงการจัดตั้งสายวิชาเคมี โดยประธานฯ จะได้แต่งตั้งให้ อ.บุญเดช เบิกฟ้า ทำหน้าที่แทนในตำแหน่งกรรมการและเลขานุการต่อไป","ที่ประชุมรับทราบ"]
["วาระที่ 2","รับรองรายงานการประชุม ครั้งที่ 2/2553 วันที่ 15  ธ.ค. 2553"]
["วาระที่ 3","เรื่องเพื่อพิจารณา"]
[3.1,"รายละเอียดการสัมนาเคมี ปี 2554","ตามที่โครงการจัดตั้งสายวิชาเคมีได้รับอนุมัติงบประมาณสำหรับโครงการสัมนาเคมี ปี 2554 ในวงเงิน 100,000 บาท ประธานได้ให้ที่ประชุมพิจารณาถึงหัวข้อ กำหนดเวลา และสถานที่ สำหรับการสัมนา ที่ประชุมได้ลงความเห็นว่าให้ใช้รูปแบบเดิมคือมีการสัมนาในคณะต่อเนื่องกัน 3-4 ครั้ง ในฃ่วงภาคฤดูร้อน อาจมีการเชิญวิทยากรมาให้ความรู้ในหัวข้อทีเกี่ยวข้อง และจะสรุปเนื้อหาทั้งหมดโดยจัดประชุมนอกสถานที่ ","ที่ประชุมมีมติให้กรรมการพิจารณาเสนอหัวข้อการสัมนา รายชื่อวิทยากรและสถานที่ในการจัดสัมนานอกสถานที่ และส่งให้เลขา ภายในวันที่ 27 ม.ค. 54 "]
[3.2,"ประมาณการรายได้ ปี 2555","ประธานได้ชี้แจงข้อมูลเบื้องต้นจากการประมาณรายรับ ปี 2555 จากค่าหน่วยกิตของรายวิชาปกติและจากโครงการหลักสูตรวิศวกรรมภาคพิเศษ จากข้อมูลที่ได้รับจากรักษาการผู้ประสานงานสาขา โดยให้กรรมการช่วยพิจารณาความถูกต้องของข้อมูล ","มีบางรายวิชาที่ยังไม่ครบถ้วน รักษาการผู้ประสานงานสาขาจะได้รวบรวมส่งข้อมูลที่ประธานเพื่อพิจารณาอีกครั้งในการประชุมครั้งต่อไป"]
[3.3,"การแบ่งงานและหน้าที่รับผิดชอบฝ่ายต่าง ๆ","ประธานเสนอให้ที่ประชุมพิจารณาการดำเนินงานเกี่ยวกับความปลอดภัยในห้องปฏิบัติการและการเรียนการสอนด้านปฏิบัติการ ที่ประชุมได้อภิปรายถึงรูปแบบการดำเนินงาน ที่เหมาะสม ","ที่ประชุมให้ประธานรวบรวมข้อเสนอแนะเกี่ยวกับความปลอดภัยในห้องปฏิบัติการและเสนอรูปแบบการดำเนินงานที่เหมาะสมในครั้งต่อไป"]
["วาระที่ 4 ","เรื่องสืบเนื่อง"]
[4.0999999999999996,"แผนงบประมาณรายได้ ปี 2555","สืบเนื่องประชุม กก.บริหาร 2553/2 เรื่องการเสนอแผนการใช้เงินงบประมาณรายได้ ประธานได้มอบหมายให้แต่ละสาขาเสนอรายการครุภัณฑ์และโครงการที่เกี่ยวข้องกับสาขาหรือฝ่ายของตน เพื่อรวบรวมและพิจารณาในครั้งต่อไป","ให้เสนอโครงการและครุภัณฑ์ที่เกี่ยวข้องโดยส่งที่ อ.บุญเดช ภายในวันที่ 27 ม.ค. 54 และนำเสนอต่อที่ประชุมในครั้งต่อไป"]

{"sheet":"2554-2","index":5,"n_rows":36,"n_cols":4,"rows_kept":36,"cut":false,"hidden":false,"merged":[[0,0,0,3],[1,0,1,3],[2,0,2,3],[3,0,3,3],[35,2,35,3],[17,0,17,3],[24,1,24,3],[25,1,25,3],[32,1,32,3],[29,1,29,3],[19,1,19,3]]}
["รายงานการประชุมคณะกรรมการบริหารโครงการจัดตั้งสายวิชาเคมี"]
["ครั้งที่ 2/2554  วันพฤหัสบดีที่ 3 กุมภาพันธ์ 2554"]
["ห้อง SC5-103 คณะศิลปศาสตร์และวิทยาศาสตร์"]
["เวลา 16.30-20.00 น."]
["ผู้เข้าประชุม"]
[1,"อ.ดร.ปิติ ตรีสุกล","ประธานฯโครงการจัดตั้งสายวิชาเคมี"]
[2,"อ.นวลจันทร์ มัจฉริยกุล","กรรมการ"]
[3,"ผศ.ดร.ฐิติยา แซ่ปัง","กรรมการและรักษาการผู้ประสานงานสาขาเคมีสิ่งแวดล้อม"]
[4,"อ.ดร.วันเพ็ญ เหล่าศรีไพบูลย์","กรรมการและรักษาการผู้ประสานงานสาขาเคมีอินทรีย์"]
[5,"อ.ดร.วีนาวรรณ สมผล","กรรมการและรักษาการผู้ประสานงานสาขาเคมีอนินทรีย์"]
[6,"อ.ดร.กมลทิพย์ ขัตติยะวงศ์","กรรมการและรักษาการผู้ประสานงานสาขาเคมีพอลิเมอร์และเคมีอุตสาหกรรม"]
[7,"อ.ดร.อาทร ลอยสรวงสิน","กรรมการและรักษาการผู้ประสานงานสาขาเคมีเชิงฟิสิกส์"]
[8,"อ.ดร.บุญเดช เบิกฟ้า","กรรมการและเลขานุการ"]
["ผู้ไม่เข้าประชุม"]
[1,"รศ.ดร.จงรักษ์ แก้วประสิทธิ์","รองประธาน"]
[2,"อ.วิไลลักษณ์ ขวัญยืน","กรรมการและรักษาการผู้ประสานงานสาขาเคมีวิเคราะห์"]
[]
["ครั้งที่ 2/2554 วันที่ 3 กุมภาพันธ์ 2554 เริ่มประชุมเวลา 16.30 น. ปิดประชุมเวลา 20.00 น. รับรองรายงานการประชุม วันที่ 3 มี.ค. 54"]
["วาระ","เรื่อง","รายละเอียด","มติของที่ประชุม"]
["วาระที่ 1","เรื่องแจ้งเพื่อทราบ"]
[1.1000000000000001,"แจ้งคำสั่งแต่งตั้งกรรมการและเลขานุการที่ประชุมแทนตำแหน่งเดิม","อ. วรางคณา ลาออกจากการเป็นกรรมการและเลขาฯ ของคณะกรรมการบริหารโครงการจัดตั้งสายวิชาเคมี ตั้งแต่ วันที่ 20 มกราคม 2554 และได้มีคำสั่งแต่งตั้ง อ.ดร. บุญเดช เป็นกรรมการและเลขาฯ แทน ตั้งแต่วันที่ 27 มกราคม 2554","รับทราบ"]
[1.2,"การให้โบนัสเจ้าหน้าที่","โบนัสให้เจ้าหน้าที่ในปี 2554 คนละ 800 บาท รวม 7 คน เป็นเงินรวมทั้งหมด 5600 บาท โดยจะมีการคุยถึงเกณฑ์การให้โบนัสในปีต่อไปเพิ่มเติม","รับทราบ"]
[1.3,"การใช้งบประมาณปี 53 ที่ติดค้างคณะ","ประธานแจ้งว่าตามข้อมูลการใช้เงินงบประมาณปี 2553 โครงการฯเคมี ติดลบค่าสารเคมีและเครื่องแก้วเป็นเงิน 94,309.80 บาท ทางฝ่ายแผนฯแจ้งว่าคณะได้ใช้เงินส่วนกลางจ่าย จึงไม่มีหนี้ผูกพัน","รับทราบ"]
[1.4,"เงินสนับสนุนการเดินทางไปอบรม เข้าร่วมการประชุม หรือ นำเสนอผลงานวิชาการ","ประธานแจ้งให้ที่ประชุมทราบว่า คณะได้จัดสรรเงินสนับสนุนการเดินทางเพื่อเสนอผลงานวิชาการหรือฝึกอบรมของบุคลากร คนละ 1,800 บาท/ปี จากงบเพื่อเพิ่มศักยภาพบุคลากร (ม.เกษตรฯ) และงบขอเสนอเดินทางต่างประเทศ ขอได้ 2 ทาง คือ จากคณะ 70% ไม่เกิน 50000 บาท และทาง สวพ. ให้ไม่เกิน 30%  (ปีเว้นปี) คนที่จะไปขอต้องเขียนเสนอแผนส่ง ศสวท. และ สวพ.","รับทราบ"]
["วาระที่ 2","รับรองรายงานการประชุม ครั้งที่ 1 / 2554 วันที่ 20 มกราคม 2554"]
["วาระที่ 3","เรื่องเพื่อพิจารณา"]
[3.1,"แนวทางการบริหารจัดการสารเคมีและเครื่องมือ","ตามที่ได้มีนิสิตในหลักสูตรอื่นได้ยื่นบันทึกขอใช้เครื่องมือวิเคราะห์ทางเคมี แต่ปัจจุบันยังไม่ได้มีการกำหนดแนวทางหรือข้อบังคับและค่าใช้จ่ายในการใช้บริการที่ชัดเจน ที่ประชุมจึงได้ร่วมพิจารณาแนวทางและเกณฑ์การให้บริการแก่บุคลากร นิสิต หรือบุคคภายนอก เกี่ยวกับสารเคมีและเครื่องมือต่าง ๆ รวมถึง การบริการตรวจวิเคราะห์ ที่ประชุมมีมติให้จัดระเบียบการขอใช้เครื่องมือ ห้องปฏิบัติการ การขอใช้เครื่องมือต้องขอเป็นรายอาทิตย์ และหากเป็นนิสิตต่างสาขา ต้องทำหนังสือผ่านอาจารย์ที่ปรึกษาเพื่อขอความอนุเคราะห์ก่อน และได้มีการเสนอให้พิจารณาการอยู่ค้างคืนของนิสิตที่ทำปัญหาพิเศษ เพื่อให้มีเหมาะสมหรือมีความสะดวกมากขึ้น เช่นจัดห้องพักหรือโซฟาให้ในกรณีที่นิสิตจำเป็นต้องค้างคืนที่คณะเพื่อทำวิจัย","1 ที่ประชุมมีมติให้จัดระเบียบการขอใช้เครื่องมือ ห้องปฏิบัติการ โดยให้คุณศรัณย์ธรช่วยดูแล \n2 มอบหมายให้ อ.กมลทิพย์ และ อ.วีนาวรรณ จัดทำระเบียบการขอใช้เครื่องมือ และ เกณฑ์การคิดค่าค่าบริการ และตารางการใช้เครื่องมือ และให้ อ.อาทร ช่วยออกแบบฟอร์มการจัดซื้อวัสดุวิทยาศาสตร์และสารเคมี โดยจะได้นำให้ กก.บริหาร พิจารณาต่อไป"]
[3.2,"การขออนุมัติทุนเดินทาง / ฝึกอบรมของบุคลากรเคมี","ประธานได้ขอให้ที่ประชุมพิจารณาถึงแนวปฏิบัติ เนื่องจากมีกรณีที่ ผศ. วุฒิพงษ์ ได้ขออนุมัติเดินทางไปร่วมการประชุมวิชาการในต่างประเทศโดยขอใช้งบของโครงการฯ จำนวน 17,800 บาท โดยขออนุมัติเดินทางพร้อมกับบุคลากรสายวิชาคณิตศาสตร์ และได้รับการอนุมัติเรียบร้อยแล้ว แต่เรื่องไม่ได้ผ่านโครงการจัดตั้งสายวิชาเคมี ที่ประชุมเสนอว่าควรยืนตามมติเดิมคือค่าใช้จ่ายส่วนที่เกินวงเงินที่จัดสรรให้ให้ติดต่อเพื่อยืมโควต้าจากอาจารย์ท่านอื่นและในกรณีต่อ ๆ ไปให้อาจารย์ที่จะเดินทางต้องขออนุมัติการเดินทางและงบประมาณผ่านโครงการจัดตั้งสายวิชาเคมี","ที่ประชุมมีมติให้อนุมัติเบิกค่าใช้จ่ายจากโครงการ ฯ โดยยืนตามมติเดิมคือให้ยืมโควต้าจากอาจารย์ท่านอื่น"]
[3.3,"การซ่อมแซมห้องปฏิบัติการอาคาร 5 ","ประธานแจ้งว่าเกิดกรณีที่ห้องปฏิบัติการตึก 5 หน้าต่างเปิดในช่วงวันหยุดเนื่องจากหน้าต่างชำรุด กอปรกับคณะได้จัดสรรงบประมาณเพื่อซ่อมแซมอาคาร 1-5 ในวงเงินรวม 24 ล้านบาท ประธานจึงขอให้กรรมการร่วมพิจารณารายการที่ต้องซ่อมแซม เพื่อนำเสนอต่อคณะโดยขอใช้งบนี้ซ่อมแซมอาคารส่วนที่ชำรุดและจัดทำประตูกั้นทางเดินตึก 5 ชั้น 1 และ 2 และ อื่น ๆ เพื่อให้มีความปลอดภัยมากขึ้น ","ที่ประชุมเห็นชอบและจะได้เสนอรายการที่ควรต้องซ่อมแซมมาที่เลขาเพื่อรวบรวมเสนอต่อคณะต่อไป"]
["วาระที่ 4 ","เรื่องสืบเนื่อง"]
[4.0999999999999996,"โครงการงบรายได้","ที่ประชุมได้ร่วมพิจารณาประมาณการรายได้และรายจ่ายของงบประมาณรายได้ ปี 2555 เพื่อเสนอต่อฝ่ายแผน วันที่ 15 ก.พ. 54 โดยโครงการที่เสนอมามีโครงการทัศนศึกษาในรายวิชา รวม 7 รายวิชา และได้มีผู้เสนอว่าควรจะมีการกำหนดเกณฑ์ที่เหมาะสมในการเสนอขอโครงการทัศนศึกษารายวิชา โดยดูเหตุผล ความจำเป็น และวงเงินที่ใช้ โครงการเขียนเอกสารประกอบการสอนให้รวมเป็นโครงการเดียวกัน โครงการด้านประชาสัมพันธ์และสารสนเทศ ให้รวมโครงการย่อยและแยกเป็น 2 โครงการ โครงการฝึกอบรมด้านความปลอดภัยให้รวมเป็นโครงการเดียว และพิจารณาตัด/ยุบรวม โครงการด้านพัฒนาศักยภาพนิสิต เพื่อให้คล่องตัวในการดำเนินงานมากขึ้น ประธานได้ขอให้แต่ละฝ่ายส่งตัวโครงการเพื่อจะได้รวบรวมส่งฝ่ายแผนต่อไป","ที่ประชุมมีมติดังนี้\nเงินรายได้ ที่ใช้ได้ (ตามเอกสารแนบ) 1,671,850.13 บาท ตั้งค่าครุภัณฑ์ทดแทน 200,000 บาท, ครุภัณฑ์เพิ่มเติม UV Lamp 46,000 บาท, รวมเงินโครงการต่าง ๆ ของ ฝ่ายประชาสัมพันธ์ งบ 35,000 บาท, รวมเงินโครงการจัดทำเอกสารและสือประกอบการสอน รวม 40,000 บาท"]
[4.2,"โครงการสัมมนาเคมี","ตามที่โครงการฯเคมี ได้รับอนุมัติให้จัดทำโครงการสัมนนาเคมี ปี 2554 ประธานจึงขอให้คณะกรรมการพิจารณาหัวข้อ วัน-เวลา และ สถานที่ ในการจัดการสัมนา ในเบื้องต้นมี อ.วรางคณา เสนอสถานที่ เป็นพัทยา หรือ หัวหิน ส่วนหัวข้อการสัมนาที่มีผู้เสนอได้แก่ การจัดการสารเคมี ความปลอดภัย/มาตรฐานห้องปฏิบัติการ(อ.อาทร) การประกันคุณภาพเพื่อพัฒนาการเรียนการสอน(อ.วิไลลักษณ์) การแบ่งส่วนงานบริหารในโครงการฯ (อ.ปิติ)","ที่ประชุมมีมติให้ กก. พิจารณาร่วมกับอาจารย์ในสาขา เพื่อเสนอหัวข้อในการสัมนาและวิทยากรที่จะเชิญมาร่วมในการสัมนา โดยส่งรายชื่อหัวข้อและวิทยากรที่ อ.บุญเดช"]
["วาระที่ 5 ","เรื่องอื่น ๆ"]
[5.0999999999999996,"ผู้สมัครอาจารย์","ประธานได้แจ้งว่า ได้รับการติดต่อจาก อ.นงพงาว่า คุณ น้ำฝน ทองทวี วุฒิปริญญาเอกด้านเคมีวิเคราะห์ สนใจสมัครเป็นอาจารย์ จึงได้ขอให้ที่ประชุมพิจารณาวันที่เหมาะสมเพื่อเรียกตัวมาสัมภาษณ์ในเบื้องต้น โดยขณะนี้ยังสามารถขอโควต้า อาจารย์ระดับปริญญาเอกได้โดยต้องเสนอข้อมูลความจำเป็นให้มหาวิทยาลัยพิจารณา","ที่ประชุมสรุปว่าให้สาขาเคมีวิเคราะห์พิจารณาวัน-เวลา ที่เหมาะสมเพื่อเชิญคุณนำฝนมาสัมภาษณ์ในเบื้องต้น "]
[5.2,"การแบ่งงานจัดการของฝ่าย","ประธานได้เสนอว่าควรมีการพิจารณาแบ่งหน้าที่รับผิดชอบของกรรมการเพื่อให้สามารถดำเนินการได้อย่างมีประสิทธิภาพ โดยจะได้รวบรวมข้อมูลมาพิจารณาในครั้งต่อ ๆ ไป รวมถึงการแบ่งงานของเจ้าหน้าที่ตามความเหมาะสมหรือความชำนาญ และให้มีระบบตรวจสอบ ที่ประชุมได้เสนอให้พิจารณาระบบการประเมินเจ้าหน้าที่ ซึ่งจะมีส่วนให้การทำงานมีประสิทธิภาพมากขึ้น โดยอาจจะนำไปเป็นประเด็นในการสัมนาของโครงการฯเคมี","ประธานจะได้รวบรวมข้อมูลให้ที่ประชุมพิจารณาในครั้งต่อ ๆ ไป"]
[5.3,"การประชุมครั้งต่อไป","ประชุมครั้งต่อไป วันพฤหัสบดีที่ 3 มีนาคม 2554"]

{"sheet":"2554-3","index":6,"n_rows":38,"n_cols":4,"rows_kept":38,"cut":false,"hidden":false,"merged":[[37,2,37,3],[3,0,3,3],[17,0,17,3],[19,1,19,3],[25,1,25,3],[26,1,26,3],[0,0,0,3],[1,0,1,3],[2,0,2,3],[29,1,29,3],[31,1,31,3]]}
["รายงานการประชุมคณะกรรมการบริหารโครงการจัดตั้งสายวิชาเคมี"]
["ครั้งที่ 3/2554  วันพฤหัสบดีที่ 3 มีนาคม 2554"]
["ห้อง SC5-103 คณะศิลปศาสตร์และวิทยาศาสตร์"]
["เวลา 16.30-19.00 น."]
["ผู้เข้าประชุม"]
[1,"อ.ดร.ปิติ ตรีสุกล","ประธานฯโครงการจัดตั้งสายวิชาเคมี"]
[2,"อ.นวลจันทร์ มัจฉริยกุล","กรรมการ"]
[3,"ผศ.ดร.ฐิติยา แซ่ปัง","กรรมการและรักษาการผู้ประสานงานสาขาเคมีสิ่งแวดล้อม"]
[4,"อ.ดร.วันเพ็ญ เหล่าศรีไพบูลย์","กรรมการและรักษาการผู้ประสานงานสาขาเคมีอินทรีย์"]
[5,"อ.ดร.วีนาวรรณ สมผล","กรรมการและรักษาการผู้ประสานงานสาขาเคมีอนินทรีย์"]
[6,"อ.ดร.กมลทิพย์ ขัตติยะวงศ์","กรรมการและรักษาการผู้ประสานงานสาขาเคมีพอลิเมอร์และเคมีอุตสาหกรรม"]
[7,"อ.ดร.อาทร ลอยสรวงสิน","กรรมการและรักษาการผู้ประสานงานสาขาเคมีเชิงฟิสิกส์"]
[8,"อ.วิไลลักษณ์ ขวัญยืน","กรรมการและรักษาการผู้ประสานงานสาขาเคมีวิเคราะห์"]
[9,"อ.ดร.บุญเดช เบิกฟ้า","กรรมการและเลขานุการ"]
["ผู้ไม่เข้าประชุม"]
[1,"รศ.ดร.จงรักษ์ แก้วประสิทธิ์","รองประธาน"]
[]
["ครั้งที่ 3/2554 วันที่ 3 มีนาคม 2554 เริ่มประชุมเวลา 16.30 น. ปิดประชุมเวลา 19.00 น. รับรองรายงานการประชุมวันที่ 7 เม.ย. 54"]
["วาระ","เรื่อง","รายละเอียด","มติของที่ประชุม"]
["วาระที่ 1","เรื่องแจ้งเพื่อทราบ"]
[1.1000000000000001,"ที่ประชุมกรรมการบริหารจัดการ ","1. การพิจารณาความดีความชอบ/เลื่อนขั้น เกณฑ์พิจารณา สายวิชา 60% (ให้รองฯบริหารเรียกประชุมเพื่อพิจารณาเกณฑ์กลาง) คณบดี 40% (ให้รอง/ผช.แต่ละฝ่าย)","รับทราบ"]
[1.2,"ความคืบหน้าหลักสูตร วท.ม.(เคมี)","คณะวิทยาศาสตร์กำลังปรับปรุงเพื่อเสนอต่อที่ประชุมคณบดีกลางเดือนเมษายน คาดว่าน่าจะผ่านสภามหาวิทยาลัยเมษายนนี้","รับทราบ"]
[1.3,"สรุปการเปิดรายวิชาภาคฤดูร้อน","แจ้งเปิดสอน 5 รายวิชา คือ 01403111 (รวม 3 หมู่) 01403113 (รวม 2 หมู่) 01403115 (ไม่เปิดสอน) 01403117 (รวม 3 หมู่) 01403221 (รวม 1 หมู่) ผู้จัดการรายวิชาจะรับผิดชอบหาผู้สอนและแบ่งภาระการสอน โดยจะแจ้งให้คณาจารย์ทราบต่อไป","รับทราบ"]
[1.4,"สรุปแผนงบรายได้ปี 2554","ประธานแจ้งรายละเอียดแผนงบประมาณรายได้ ปี 54 ","รับทราบ"]
[1.5,"แนวนโยบาย รองฯ กำแพงแสน","รองอธิการบดี วิทยาเขตกำแพงแสน ได้ให้นโยบายในการมาเยี่ยมคณะ ศวท. วันที่ 1 มีนาคม 2554\n1. สนับสนุน ตั้ง center of excellence\n2. ส่งเสริมโครงการอบรมระยะสั้น  แล้วทางวิทยาเขตจะสนับสนุนทำ MOU กับหน่วยงานภาคนอก เพื่อหารายได้\n3. อุปกรณ์และครุภัณฑ์ จะให้คณะวิศวช่วยดูแล\n4. ถกแถลง  ทุกวันอังคารโดยเชิญทีมบริหารมาประชุมร่วมกัน\n5. มุ่งความเป็น นานาชาติ สนับสนุนการหางบเข้าวิทยาเขต","รับทราบ"]
["วาระที่ 2","รับรองรายงานการประชุม ครั้งที่ 2/2554 วันที่ 3 กุมภาพันธ์ 2554"]
["วาระที่ 3","เรื่องเพื่อพิจารณา"]
[3.1,"การปรับเปลี่ยนรายการซ่อมแซม โครงการก่อสร้าง งานปรับปรุงระบบสาธารณูปโภค และ โครงการ ปรับปรุงอาคารปฏิบัติการ 1-5 ศวท.","ประธานแจ้งรายละเอียดเกี่ยวกับโครงการซ่อมแซมอาคาร 1-9 ของคณะ ศวท. ระยะเวลาดำเนินการ 270 วัน แบบการซ่อมแซมจัดทำในปี 2551 ผู้ควบคุมงานแจ้งว่าให้เสนอรายการที่ต้องการปรับเปลี่ยน(ลด/เพิ่ม)\nโดยประธานได้ให้ที่ประชุมพิจารณาถึงความเหมาะสมของรายการที่ส่วนที่เสนอไปแล้วคือ ซ่อมหน้าต่างตึก 5 ทำประตูทางเดินตึก 5 ชั้น 1 และ 2* ซ่อมระบบน้ำ-ไฟ ตึก 5\nส่วนที่จะขอปรับ/เพิ่มคือ แก้น้ำซึมและทำอ่างน้ำ*ห้อง 203-204 ระบบแก๊สห้อง SC2-204 และ SC5-107 และประตูเลื่อนชั้นสองเพื่อให้ใช้งานง่ายขึ้น โดยที่ประชุมได้ซักถามถึงรายละเอียดของรายการต่าง ๆ และเสนอเพิ่มเติมให้เพิ่มรายการพัดลมดูดอากาศในห้องปฏิบัติการ และข้อมูลเกี่ยวกับฝักบัว (shower) ในห้องปฏิบัติการ","ที่ประชุมมีมติเห็นชอบกับรายการซ่อมแซมที่เสนอต่อคณะเพื่อปรับเปลี่ยนจากแผนเดิม"]
[3.2,"เกณฑ์การพิจารณาความดีความชอบ 60% ","ประธานแจ้งว่าคณะจะจัดตั้งคณะกรรมการเพื่อกำหนดเกณฑ์การพิจารณาความดีความชอบในส่วนการให้คะแนน 60 % ของสายวิชาหรือโครงการจัดตั้งฯ ประธานจึงให้ที่ประชุมพิจารณาเสนอประเด็นต่าง ๆ เพื่อเสนอในที่ประชุมดังกล่าว กรรมการได้เสนอว่าให้พิจารณาผลงานวิจัยจากจำนวนเงินทุนวิจัย และดูประสิทธิภาพของงานเช่นการส่งงานทันเวลา โดยคะแนนส่วนนี้ให้หัวหน้าหน่วยงานเป็นผู้พิจารณา ทั้งนี้ให้ประธานพิจารณาข้อเสนอของสายวิชา/หรือประธานโครงการจัดตั้งฯ อื่นประกอบด้วย","ที่ประชุมให้ข้อเสนอแนะเกี่ยวกับเกณฑ์การให้คะแนน และประธานจะได้นำเสนอต่อคณะกรรมการพิจารณาเกณฑ์ของคณะที่จะได้จัดตั้งขึ้น"]
["วาระที่ 4 ","เรื่องสืบเนื่อง"]
[4.0999999999999996,"โครงการสัมนาเคมี","ประธานเสนอให้ที่ประชุมพิจารณาสถานที่ - ช่วงเวลา หัวข้อเรื่อง และวิทยากร และมอบหมายผู้รับผิดชอบโครงการแทน อ.วรางคณา ซึ่งติดภาระอื่น โดยหัวข้อที่มีผู้เสนอในเบื้องต้นคือ 1) การประกันคุณภาพ/การทำ SAR ของโครงการฯ 2) แผนการดำเนินงานของโครงการฯ 3) การจัดการห้องปฏิบัติการ 4) การบริหารจัดการในโครงการฯ ได้แก่ การสั่งซื้อสาร การใช้ทรัพยากร/งบประมาณอย่างคุ้มค่า ระบบตรวจสอบ/ประเมินผล ทั้งนี้บางหัวข้อจะได้ดำเนินการภายในและบางหัวข้อจะดำเนินการนอกสถานที่ ","1. มีมติให้ อ.นวลจันทร์ เป็นผู้รับผิดชอบและมีผู้ช่วยคือ อ.ดร. กมลทิพย์ วันที่ 20-22 เมษายน 2554 โดยมี สถานที่ 2 แห่งคือชะอำ และหัวหิน\n2. หัวข้อประชุม ประชุมในวิทยาเขต ความปลอดภัยในห้องปฏิบัติการ ประกันคุณภาพ (31 มี.ค.)  การบริหารจัดการ แผนกลยุทธ์\n3. ประชุมนอกสถานที่ \"แผนการเรียนการสอน\" "]
["วาระที่ 5 ","เรื่องอื่น ๆ"]
[5.0999999999999996,"การจัดหัวข้อเรื่องปัญหาพิเศษ","ประธานหลักสูตร วท.บ. (เคมี) แจ้งว่ายังมีนิสิตที่ยังไม่ได้หัวข้อทำปํญหาพิเศษ เนื่องจากอาจารย์บางท่านไม่ได้ส่งหัวข้อวิจัยให้นิสิตเลือก และหัวข้องานวิจัยบางเรื่องไม่มีนิสิตเลือก โดยมีนิสิตจำนวน 8 คนที่ยังได้หัวข้อวิจัย จึงได้เสนอให้ที่ประชุมพิจารณาแนวทางแก้ไข กรรมการได้อภิปรายถึงประเด็นต่าง ๆ ได้แก่แนวทางการจัดสรรหัวข้องานวิจัยที่ได้พิจารณาแล้ว และประเด็นอื่น ๆ ได้แก่ กรณีที่นิสิตไม่ถนัดในการทำวิจัยด้านเคมีคำนวณ หรือ กรณีที่อาจารย์ไม่ได้แจ้งหัวข้องานวิจัย","ที่ประชุมได้มีมติให้ดำเนินการตามแนวทางที่ได้พิจารณาก่อนหน้านี้แล้ว โดยกรณีที่นิสิตยังไม่ได้หัวข้องานวิจัยในรอบแรก ให้ใช้การจับฉลาก โดยกระจายนิสิตให้กับอาจารย์ทุกท่าน รวมถึงท่านที่ไม่ได้แจ้งหัวข้อเรื่องมา ส่วนในกรณีที่นิสิตได้หัวข้อเรื่องเกี่ยวกับด้านเคมีคำนวณแต่ไม่ประสงค์จะทำงานวิจัยที่เกี่ยวกับด้านนั้น อาจารย์จะเลือก/ปรับเปลี่ยนหัวข้องานวิจัยให้ตรงกับความต้องการของทั้งสองฝ่าย"]
[5.2,"โครงการปัจฉิมนิเทศ นิสิตชั้นปีที่ 4","ตามที่โครงการฯมีแผนจัดโครงการปัจฉิมนิเทศให้นิสิตชั้นปีที่ 4 แต่ยังไม่ได้ดำเนินการ ประธานหลักสูตร วท.บ. เสนอรูปแบบในการจัดโครงการ คือ 1) ทัศนศึกษานอกสถานที่ 2) จัดภายในคณะ แต่เนื่องจากการจัดงานข้างนอกวิทยาเขต ค่าใช้จ่ายสูง และนิสิตบางกลุ่มไม่ต้องการออกไป จึงจะจัดในภายในคณะจัดประมาณวันอาทิตย์ที่ 20 มีนาคม 2554 โดยเชิญวิทยากร 1-2 คน ศิษย์เก่า 3-4 คน และได้ให้ที่ประชุมเสนอความเห็น ","ที่ประชุมเห็นชอบกับรูปแบบ โดยมีการเลี้ยงอาหารเที่ยง โดยอาจมีการทำบุญในช่วงเช้า และกรณีที่กรรมการสามารถเสนอรายชื่อนิสิตเก่าที่จะมาเป็นวิทยากรได้ที่ อ.วิไลลักษณ์"]
[5.3,"โครงการทัศนศึกษาด้านวิทยาศาสตร์ของนิสิตชั้นปีที่ 1 ","ประธานหลักสูตร วท.บ.เคมี แจ้งรายละเอียดการจัดโครงการทัศนศึกษาของนิสิตชั้นปีที่ 1 โดยใช้งบประมาณของกองทุนพัฒนานิสิต โดยจะจัดในวันที่ 11 มีนาคม 2554 กำหนดการ เดินทาง 6.30 น. เตรียมอาหารเช้าเอง ไปโรงงานโอสถสภา จ.พระนครศรีอยุธยา ถึงเทียง ช่วงบ่ายเป็นการทัศนศึกษาเชิงวัฒนธรรมใน จ.พระนครศรีอยุธยา โดยได้จองรถพัดลม 50 ที่นั่ง ค่าใช้จ่าย 6,000 บาท ที่ประชุมได้ร่วมพิจารณาถึงความเหมาะสม","ที่ประชุมเสนอให้เปลี่ยนรถที่ใช้เป็นรถปรับอากาศเนื่องจากอากาศร้อน ประธานหลักสูตรจะได้ดำเนินการต่อไป"]
[5.4,"ค่ายวิทยาศาสตร์ รร.เสาไห้ ","ศสวท.แจ้งกำหนดการจัดค่ายวิทยาศาสตร์โรงเรียนเสาไห้ โดยเป็นปฏิบัติการที่เกี่ยวกับการสกัดสาร 3 ชม ตั้งงบไว้ให้ อาจารย์ 3 คน ๆ ละ 300 บาท/ ชม มีเด็ก ม.ปลาย สายวิทย์ 30 คน โดยมีค่าสารเคมีให้ต่างหาก โดยต้องการช่วงเวลา 16-18 มีนาคม 2554 ประธานได้แจ้งให้ที่ประชุมพิจารณาหัวข้อปฏิบัติการที่เหมาะสมและผู้รับผิดชอบดูแลการจัดค่ายฯในส่วนของเคมี โดยในส่วนของเคมีจะจัดในวันที่ 17 มีนาคม 2554","ที่ประชุมมีมติให้ใช้การทดลองการแยกการบูรและกรดเบนโซอิกและทำการวิเคราะห์สารโดยดูจากจุดหลอมเหลว (ปฏิบัติการ 01403221) และมอบหมายให้ อ.อาทร และ อ.บุญเดช เป็นผู้ดูแล"]
[5.5,"การเสนอเจ้าหน้าที่ผู้ดูแลอาคาร","ประธานแจ้งว่ารองคณบดีฝ่ายบริหารได้ให้โครงการฯเสนอรายชื่อเจ้าหน้าที่รับผิดชอบดูแลอาคารในส่วนของเคมี โดยมีหน้าที่ตรวจสอบความเรียบร้อยในการปิดตึก หรือติดต่อในกรณีเกิดเหตุฉุกเฉิน โดยประธานได้เสนอชื่อคุณทองยอด ทองสน ","ที่ประชุมเห็นชอบ"]
[5.6,"การประชุมครั้งต่อไป","ประชุมครั้งต่อไป วันพฤหัสบดีที่ 7 เมษายน 2554"]

{"sheet":"2554-4","index":7,"n_rows":38,"n_cols":4,"rows_kept":38,"cut":false,"hidden":false,"merged":[[37,1,37,3],[33,1,33,3],[27,1,27,3],[0,0,0,3],[1,0,1,3],[2,0,2,3],[3,0,3,3],[31,1,31,3],[17,0,17,3],[19,1,19,3],[26,1,26,3]]}
["รายงานการประชุมคณะกรรมการบริหารโครงการจัดตั้งสายวิชาเคมี"]
["ครั้งที่ 4/2554  วันพฤหัสบดีที่ 6 เมษายน 2554"]
["ห้อง SC5-103 คณะศิลปศาสตร์และวิทยาศาสตร์"]
["เวลา 16.30-19.30 น. รับรองรายงานการประชุมวันที่ 9 มิ.ย. 54 "]
["ผู้เข้าประชุม"]
[1,"อ.ดร.ปิติ ตรีสุกล","ประธานฯโครงการจัดตั้งสายวิชาเคมี"]
[2,"อ.นวลจันทร์ มัจฉริยกุล","กรรมการ"]
[3,"ผศ.ดร.ฐิติยา แซ่ปัง","กรรมการและรักษาการผู้ประสานงานสาขาเคมีสิ่งแวดล้อม"]
[4,"อ.ดร.วันเพ็ญ เหล่าศรีไพบูลย์","กรรมการและรักษาการผู้ประสานงานสาขาเคมีอินทรีย์"]
[5,"อ.ดร.วีนาวรรณ สมผล","กรรมการและรักษาการผู้ประสานงานสาขาเคมีอนินทรีย์"]
[6,"อ.ดร.กมลทิพย์ ขัตติยะวงศ์","กรรมการและรักษาการผู้ประสานงานสาขาเคมีพอลิเมอร์และเคมีอุตสาหกรรม"]
[7,"อ.ดร.อาทร ลอยสรวงสิน","กรรมการและรักษาการผู้ประสานงานสาขาเคมีเชิงฟิสิกส์"]
[8,"อ.วิไลลักษณ์ ขวัญยืน","กรรมการและรักษาการผู้ประสานงานสาขาเคมีวิเคราะห์"]
[9,"อ.ดร.บุญเดช เบิกฟ้า","กรรมการและเลขานุการ"]
["ผู้ไม่เข้าประชุม"]
[1,"รศ.ดร.จงรักษ์ แก้วประสิทธิ์","รองประธาน"]
[]
["ครั้งที่ 4/2554 วันที่ 6 เมษายน 2554 เริ่มประชุมเวลา 16.30 น. ปิดประชุมเวลา 19.30 น. "]
["วาระ","เรื่อง","รายละเอียด","มติของที่ประชุม"]
["วาระที่ 1","เรื่องแจ้งเพื่อทราบ"]
[1.1000000000000001,"การประชุมคณะกรรมการบริหารจัดการ ศวท.","ที่ประชุม กก.บริหารจัดการคณะ (วาระพิเศษ) วันที่ 14 มีนาคม 2554 อ.นวลจันทร์เข้าประชุมแทน เพื่อพิจารณาเกณฑ์การให้คะแนนเพื่อพิจารณาความดีความชอบ มีข้อสรุปดังนี้ 1) พิจารณาจากภาระงานเทียบในหน่วยงาน สูงสุดได้ 50 คะแนน ต่ำสุดได้ 35 ที่เหลือใช้เทียบเอา 2) หัวหน้าหน่วยงานพิจารณาให้ 10 คะแนน ตามประสิทธิภาพในการทำงาน","รับทราบ"]
[1.2,"รายการซ่อมแซมส่วนที่เกี่ยวข้องกับเคมี","(เอกสารแนบ 1) ประธานได้ทำหนังสือแจ้งถึงคณะเพื่อขอปรับเปลี่ยนรายการซ่อมแซมตามโครงการซ่อมแซมอาคารของคณะ ประธานคณะกรรมการจัดจ้าง (ผศ.วุฒิพงษ์) จะนำเข้าที่ประชุม กก.จัดจ้างพิจารณาวันที่ 7 เม.ย. นี้","รับทราบ"]
[1.3,"โครงการอบรมครูวิทยาศาสตร์ คณิตศาสตร์ คอมพิวเตอร์ โลก ดาราศาสตร์และอวกาศ ประจำปี 2554","โครงการ อบรมครูวิทยาศาสตร์ คณิตศาสตร์ คอมพิวเตอร์ โลก ดาราศาสตร์และอวกาศ ประจำปี 2554  มีการดำเนินงานดังนี้\n 1. ประชุมชี้แจงวิทยากรในวันที่ 19-20 เม.ย. 2554 ที่โรงแรมแอมบาสซาเดอร์ กรุงเทพ ผศ.ฐิติยา จะเข้าประชุม เกี่ยวกับรายละเอียดและหัวข้อการอบรม\n 2. ดำเนินการอบรมครูในช่วง วันที่ 9-13 พ.ค. 2554  ","รับทราบ"]
[1.4,"โครงการปรับวิชาพื้นฐานก่อนการเรียนสำหรับนิสิตชั้นปีที่ 1","วันที่ 24-27 พ.ค. 54 เปิด 4 หมู่ (เช้า/บ่าย) วันละ 3 ชม.\nรับสมัครนิสิตที่มีคะแนนสอบต่ำกว่าค่าเฉลี่ยของทั้งประเทศ ไม่เกิน 2 วิชา (เปิด 4 รายวิชา) มีอาจารย์เสนอชื่อมาแล้ว 6 ท่านคือ อ.อาทร อ.วรางคณา อ.นวลจันทร์ อ.วิไลลักษณ์ อ.วันเพ็ญ อ.วีนาวรรณ","รับทราบ"]
[1.5,"ข้อมูลการรับนิสิตใหม่ ปี 2554","ตามแผนเดิม ปี 2554 รับรวม 60 คน 1) รับตรง 10 ได้ 3 2) เด็กดีมีคุณธรรม (เพิ่มโอกาสในเขตพื้นที่) 18 ได้ 14 3) โควต้านักกีฬา 1 ไม่มี 4) Admission 26 แจ้งรับ 45 แผนปี 55 เสนอไปเท่าเดิม แต่เพิ่มจากโครงการ KU connect 5 คน (ขาด-เหลือ ปรับที่ admission ให้ครบ 60 คน)","รับทราบ"]
[1.6,"การอบรมเชิงปฏิบัติการเพื่อการเรียนการสอนที่เน้นผู้เรียนเป็นสำคัญ","ประธานประชาสัมพันธ์การจัดอบรมเชิงปฏิบัติการโดยส่วนงานจัดการศึกษา โดยขอให้อาจารย์ที่สนใจรีบสมัครเพราะรับจำนวนจำกัด\n1. โครงการอบรมเชิงปฏิบัติการเทคนิคการสอนและการวัดผลที่เน้นผู้เรียนเป็นสำคัญ วันที่ 6 พ.ค. 54 8.00-16.00 น.\n2. โครงการอบรมเชิงปฏิบัติการทำวิจัยเพื่อพัฒนาการเรียนการสอนที่เน้นผู้เรียนเป็นสำคัญ วันที่ 4 พ.ค. 54 เวลา 8.00-16.00 น.\nจัดโดยส่วนงานจัดการศึกษา สมัครภายในวันที่ 26 เมษายน นี้","รับทราบ"]
["วาระที่ 2","รับรองรายงานการประชุม ครั้งที่ 3/2554 วันที่ 3 มีนาคม 2554"]
["วาระที่ 3","เรื่องเพื่อพิจารณา"]
[3.1,"พิจารณาข้อมูลการเพิ่มอัตรากำลังอาจารย์และบุคลากรสายสนับสนุน 5 ปี (2555-2559)","ฝ่ายแผนแจ้งให้โครงการฯเสนอข้อมูลการเพิ่มอัตรากำลังอาจารย์และบุคลการสายสนับสนุน ในช่วงปี 2555-2559 เพื่อเสนอต่องานการเจ้าหน้าที่ กองแผนงาน วิทยาเขตกำแพงแสน โดยประธานได้เสนอข้อมูลเบื้องต้นไป โดยเมื่อถึงปี 2559 จะมีอาจารย์รวม 30 คน (เพิ่ม 11 คน) และบุคลากรรวม 10 คน (เพิ่ม 3 คน) รายละเอียดตามเอกสารแนบ โดยได้ให้ที่ประชุมพิจารณาความเหมาะสม ","ที่ประชุมเห็นชอบ แต่ได้เสนอว่าอาจเพิ่มจำนวนบุคลากรกลุ่มนักวิทยาศาสตร์ เพื่อรองรับการเปิดหลักสูตรระดับบัณฑิตศึกษา"]
[3.2,"เกณฑ์การพิจารณาผู้จัดการวิชา","ประธานได้เสนอข้อมูลรายชื่อผู้จัดการวิชาต่าง ๆ ในช่วงปี 2552-2553 รายละเอียดตามเอกสารแนบ # 4 เพื่อเป็นข้อมูลประกอบการพิจารณาการแต่งตั้งผู้จัดการวิชาในรอบปี 2554-2555 อ.กมลทิพย์ เสนอให้แต่ละสาขาวิชา พิจารณาเลือกผู้จัดการวิชาเฉพาะก่อน แล้วจึงนำข้อมูลมาพิจารณาการแต่งตั้งผู้จัดการวิชากลาง ","ที่ประชุมมีมติให้แต่ละสาขาพิจารณาผู้จัดการวิชาในสาขา และให้รักษาการณ์ผู้ประสานงานสาขาส่งข้อมูลให้ประธานฯก่อนวันที่ 18 เมษายน 54เพื่อใช้ประกอบการพิจารณาแต่งตั้งผู้จัดการรายวิชากลาง ในการสัมนานอกสถานที่ "]
[3.3,"การจัดทำ มคอ. 3 และ 5","ตามที่ประธานหลักสูตร วท.บ. (เคมี) ได้แจ้งให้ผู้จัดการทุกรายวิชาส่งแบบ มคอ.3 และ มคอ.5 ประธานฯโครงการ ได้เสนอว่าเนื่องจากหลักสูตร วท.บ. (เคมี) ยังไม่มี มคอ.2 จึงเสนอให้ที่ประชุมพิจารณา กำหนดผลการเรียนรู้ในมาตรฐานผลการเรียนรู้ทั้ง 5 ด้าน เพื่อใช้ในการจัดทำ มคอ. 3 และ 5 ของวิชาต่าง ๆ ที่ประชุมได้อภิปรายถึงแนวทางการจัดทำ มคอ. ว่าจะต้องรอเจ้าของหลักสูตรเป็นผู้ทำหรือต้องทำร่วมกันหรือไม่ ประธานหลักสูตร วท.บ.(เคมี) ได้เสนอว่าควรจัดทำเองโดยไม่ต้องรอเพราะต้องใช้ประกอบในการประกันด้วย  ประธานโครงการฯ จะได้ติดตามความคืบหน้าการจัดทำมคอ.และการปรับปรุงหลักสูตร วท.บ.(เคมี) กับภาควิชาเคมี ","ที่ประชุมมีมติให้รักษาการผู้ประสานงานแต่ละสาขาสอบถามอาจารย์ในสาขาเพื่อกำหนดผลการเรียนรู้แต่ละด้านและรวบรวมส่งให้ประธานเพื่อใช้ในการจัดทำ มคอ. 3 และ 5 ของวิชาในโครงการฯ ก่อนวันที่ 18 เม.ย. นี้"]
["วาระที่ 4 ","เรื่องสืบเนื่อง"]
[4.0999999999999996,"โครงการสัมนาเคมี","อ.นวลจันทร์ ได้แจ้งข้อมูลการสัมนาเคมี ในวันที่ 18-20 เม.ย. 54 ที่ ณ ปราณบุรี รีสอร์ต จ.ประจวบคีรีขันต์ โดยที่ประชุมได้ร่วมพิจารณากำหนดการ และหัวข้อการสัมนา ของบุคลากรและอาจารย์","ที่ประชุมได้มอบหมายให้ อ.กมลทิพย์ พิจารณาเสนอกำหนดการของการสัมนานอกสถานที่ โดยได้กำหนดหัวข้อที่จะสัมนารวม 3 หัวข้อ คือ \n1) การแต่งตั้งผู้จัดการวิชา และ หน้าที่ของผู้จัดการวิชา\n2) ปัญหาและการพัฒนาการจัดการเรียนการสอน\n3) การแบ่งหน้าที่รับผิดชอบด้านต่าง ๆ ของโครงการฯ\nรวม 6 ชม. และประธานจะพิจารณาหัวข้อสัมนาสำหรับเจ้าหน้าเกี่ยวกับการแบ่งหน้าที่รับผิดชอบของเจ้าหน้าที่ ส่วนหัวข้ออื่น ๆ ที่มีผู้เสนอก่อนหน้านี้จะพิจารณาในการสัมนาภายในสถานที่ ภายหลัง"]
["วาระที่ 5 ","เรื่องอื่น ๆ"]
[5.0999999999999996,"การจัดตารางสอนภาคต้น ","ประธานหลักสูตร วท.บ.(เคมี) ได้แจ้งผลการจัดตารางสอน ภาคต้น ปีการศึกษา 2554 โดยได้แจ้งว่าวิชาพื้นฐานไม่มีการเปลี่ยนแปลง ส่วนวิชาเฉพาะมีการเปลี่ยนแปลงเล็กน้อย มีหลักสูตรที่เปิดใหม่ 1 หลักสูตร (ประมง) ซึ่งยังมีปัญหาห้องปฏิบัติการไม่เพียงพอ โดยประธานหลักสูตรจะดำเนินการปรับรายวิชาเพื่อให้เหมาะสมมากขึ้น","ที่ประชุมรับทราบ"]
[5.2,"กรรมการประจำหลักสูตร","ประธานได้สอบถามเกี่ยวกับอาจารย์ประจำหลักสูตร เนื่องจากรายชื่อที่รองคณบดีฝ่ายบัณฑิตศึกษา ส่งมาให้ตรวจสอบยังเป็นชุดเก่า และไม่มีข้อมูลของหลักสูตร วท.ม. และ ปร.ด. (เคมี) และอาจารย์เคมีบางท่านที่มีรายชื่ออยู่ในหลักสูตรของเคมีมีรายชื่อซ้ำซ้อนกับในหลักสูตร วท.ม. (นิติวิทยาศาสตร์) ","ที่ประชุมมีมติให้ประธานตรวจสอบกับหน่วยจัดการศึกษาถึงการแต่งตั้งอาจารย์ประจำหลักสูตรชุดใหม่ที่ได้เสนอไปก่อนหน้านี้ว่ามีคำสั่งแต่งตั้งอย่างเป็นทางการหรือไม่ และประธานจะได้ติดตามความคืบหน้าของการปรับปรุงหลักสูตร วท.ม.(เคมี) และการขอใช้หลักสูตรดังกล่าว"]
[5.3,"การประชุมสาขาวิชา","ประธานเสนอว่าแต่ละสาขาวิชาควรมีการประชุมในสาขาอย่างสม่ำเสมอและต่อเนื่อง เพื่อให้มีการดำเนินงานในสาขาวิชาเป็นไปอย่างราบรื่น","ที่ประชุมมีมติให้แต่ละสาขาวิชาจัดการประชุมอย่างน้อย 3 เดือน/ครั้ง "]
[5.4,"ประชุมครั้งต่อไป วันพฤหัสบดีที่ 5 พฤษภาคม 2554"]

{"sheet":"2554-5","index":8,"n_rows":31,"n_cols":4,"rows_kept":31,"cut":false,"hidden":false,"merged":[[18,0,18,3],[25,1,25,3],[0,0,0,3],[1,0,1,3],[2,0,2,3],[3,0,3,3],[17,0,17,3],[20,1,20,3],[32,1,32,3],[38,2,38,3],[24,1,24,3],[29,1,29,3],[30,1,30,3]]}
["รายงานการประชุมคณะกรรมการบริหารโครงการจัดตั้งสายวิชาเคมี"]
["ครั้งที่ 5/2554  วันพฤหัสบดีที่ 9 มิถุนายน 2554"]
["ห้อง SC5-103 คณะศิลปศาสตร์และวิทยาศาสตร์"]
["เวลา 14.30-16.30 น. รับรองรายงานการประชุมเมื่อ 7 กรกฎาคม 2554"]
["ผู้เข้าประชุม"]
[1,"อ.ดร.ปิติ ตรีสุกล","ประธานฯโครงการจัดตั้งสายวิชาเคมี"]
[2,"อ.นวลจันทร์ มัจฉริยกุล","กรรมการ"]
[3,"ผศ.ดร.ฐิติยา แซ่ปัง","กรรมการและรักษาการผู้ประสานงานสาขาเคมีสิ่งแวดล้อม"]
[4,"อ.ดร.วันเพ็ญ เหล่าศรีไพบูลย์","กรรมการและรักษาการผู้ประสานงานสาขาเคมีอินทรีย์"]
[5,"อ.ดร.วีนาวรรณ สมผล","กรรมการและรักษาการผู้ประสานงานสาขาเคมีอนินทรีย์"]
[6,"อ.ดร.กมลทิพย์ ขัตติยะวงศ์","กรรมการและรักษาการผู้ประสานงานสาขาเคมีพอลิเมอร์และเคมีอุตสาหกรรม"]
[7,"อ.ดร.อาทร ลอยสรวงสิน","กรรมการและรักษาการผู้ประสานงานสาขาเคมีเชิงฟิสิกส์"]
[8,"อ.วิไลลักษณ์ ขวัญยืน","กรรมการและรักษาการผู้ประสานงานสาขาเคมีวิเคราะห์"]
[9,"อ.ดร.บุญเดช เบิกฟ้า","กรรมการและเลขานุการ"]
["ผู้ไม่เข้าประชุม"]
[1,"รศ.ดร.จงรักษ์ แก้วประสิทธิ์","รองประธานฯโครงการจัดตั้งสายวิชาเคมี"]
[]
["รายงานการประชุมคณะกรรมการบริหารโครงการจัดตั้งสายวิชาเคมี ครั้งที่ 5/2554 "]
["วันที่ 9 มิถุนายน 2554 เริ่มประชุมเวลา 14.30 น. ปิดประชุมเวลา 16.30 น. "]
["วาระ","เรื่อง","รายละเอียด","มติของที่ประชุม"]
["วาระที่ 1","เรื่องแจ้งเพื่อทราบ"]
[1.1000000000000001,"หลักสูตร วทม. เคมี","ประธานแจ้งว่า หลักสูตร วท.ม. (เคมี) ผ่านการอนุมัติการปรับปรุงหลักสูตรแล้ว อ.อาทร จะได้ประสานงานต่อไป","รับทราบ"]
[1.2,"การมอบหมายงานในแต่ละฝ่าย","ตามที่ได้มีการมอบหมายให้คณะกรรมการดำเนินการโครงการจัดตั้งสายวิชาแต่ละท่านดูแลรับผิดชอบงานแต่ละด้านในการสัมนาเคมี ปี 2554 ประธานจึงขอให้คณะกรรมการแต่ละท่านหาผู้ร่วมงานและเสนอแผนงานที่จะดำเนินการมายัง ประธานฯ และนำเสนอวาระที่เกี่ยวข้องเพื่อนำเข้าที่ประชุมในครั้งต่อไป","รับทราบ"]
[1.3,"ปัญหาที่พบ","ประธานแจ้งปัญหาพบเพื่อให้แต่ละฝ่ายพิจารณาหาแนวทางแก้ไขเช่น \n1) ปัญหาการเบิกสารเคมีของนิสิตที่ทำปัญหาพิเศษ มีการเบิกสารในปริมาณมากเกินความจำเป็น และค่าสารเคมีเกินกว่าที่ได้รับการสนับสนุนจากโครงการและกองทุนพัฒนานิสิต (รวม 4000 บาท/คน) \n2) การซ่อมแซมเครื่องมือทางวิทยาศาสตร์ เมื่อมีการแจ้งซ่อมไม่มีการติดตามผล และไม่มีการตรวจสอบหรือดูแลเครื่องมือ ทั้งนี้การซ่อมแซมเครื่องมือควรจะให้อยู่ในความดูแลของอาจารย์ที่มีความเชี่ยวชาญในเครื่องมือนั้น ๆ และมีคนกลางที่ตรวจสอบและติดตามการซ่อมแซม","รับทราบ"]
["วาระที่ 2","รับรองรายงานการประชุม ครั้งที่ 4/2554 วันที่ 9 เมษายน 2554"]
["วาระที่ 3","เรื่องเพื่อพิจารณา"]
[3.1,"การพิจารณาค่าสอนเกินภาระปกติของผู้บริหาร","ประธานแจ้งข้อมูลการเบิกค่าสอนเกินภาระงานปกติ (*ที่ประชุม กก.บริหารจัดการ ครั้งที่ 4/2554) \n1)  หัวหน้าสายวิชา/ประธานฯโครงการจัดตั้งเป็นผู้ตั้งเบิกค่าสอนเกินภาระงานปกติภายในวันสุดท้ายของการเพิ่ม-ถอนรายวิชา ค่าสอนเกินจะเบิกจากต้นสังกัด*\n2) การคิดจำนวนหน่วยชั่วโมงต้องเฉลี่ยทั้งสายวิชา พนักงาน 12 ชม./สัปดาห์ (180 ชม./ภาค) ข้าราชการ 10 ชม./สัปดาห์ (150 ชม./ภาค)\n3) ภาระงานสอน คณบดี 3 ชม./สัปดาห์ รองคณบดี/หน.สาย 6 ชม./สัปดาห์ ผู้ช่วยคณบดี/ปธ.โครงการ (ข้าราชการ) 8 ชม./สัปดาห์ ผู้ช่วยคณบดี/ปธ.โครงการ (พนักงาน) 9 ชม./สัปดาห์*\n4) วิชาที่จะนำมาคิดต้องมีผู้เรียนไม่น้อยกว่า 6 คน*\nโดยประธานได้ขอให้ที่ประชุมพิจารณาเกณฑ์การเบิกค่าสอนเกินที่เหมาะสมสำหรับอาจารย์ของโครงการฯที่ดำรงตำแหน่งผู้บริหาร","ที่ประชุมมีมติเห็นชอบให้การเบิกค่าสอนเกินภาระปกติของผู้บริหารใช้เกณฑ์เดียวกันกับอาจารย์ปกติ คือ 10 ชม./ภาค สำหรับข้าราชการ และ 12 ชม./ภาค สำหรับพนักงาน เนื่องจากผู้บริหารได้รับเงินในตำแหน่งผู้บริหารอยู่แล้วและงบรายได้ของโครงการฯมีจำกัดและโดยอาจารย์ที่ต้องการเบิกค่าสอนเกินให้เสนอข้อมูลต่อประธานฯโครงการเพื่อขออนุมัติ "]
[3.2,"แยกฝ่ายวิชาการและบริการวิชาการออกจากกัน","เนื่องจากงานของฝ่ายวิชาการและบริการวิชาการ ที่มี ผศ. ฐิติยา เป็นประธาน มีปริมาณมาก ประธานจึงเสนอขอแยกฝ่ายวิชาการและบริการวิชาการออกจากกันเพื่อให้การดำเนินงานมีประสิทธิภาพมากขึ้น โดยงานด้านวิชาการจะเกี่ยวข้องกับการพัฒนากระบวนการเรียนการสอน และ ปรับปรุงเนื้อหา/สื่อการเรียนการสอน การทำคลังข้อสอบ ฯลฯ","ที่ประชุมมีมติเห็นชอบให้แยกฝ่ายวิชาการและบริการวิชาการตามที่เสนอ โดย ผศ.ฐิติยา ดูแลฝ่ายบริการวิชาการ อ.ปิติ และ อ.วันเพ็ญ ดูแลฝ่ายวิชาการ"]
[3.3,"อาจารย์ประจำหลักสูตรและอาจารย์บริหารหลักสูตร","ประธานหลักสูตร วท.บ.(เคมี) ได้เสนอให้พิจารณารายชื่อของอาจารย์ประจำหลักสูตรและคณะกรรมการบริหารหลักสูตรใหม่ เนื่องจากรายชื่อยังเป็นชุดเดิมและอาจารย์บางท่านได้รับเป็นอาจารย์ประจำหลักสูตรอื่นแล้ว โดยเสนอให้แต่งตั้งอาจารย์ประจำหลักสูตรและคณะกรรมการบริหารหลักสูตรเป็นชุดเดียวกันเพื่อลดความสับสน \nรายชื่อของอาจารย์ประจำหลักสูตร วท.บ.(เคมี) ชุดเดิม ประกอบด้วย 1) อ.วิไลลักษณ์ 2) อ.นวลจันทร์ 3) อ.วุฒิพงษ์ 4) อ.พจมาลย์ 5) อ.ปิติ \nอาจารย์เคมีที่ประจำหลักสูตร วท.ม.(นิติวิทยาศาสตร์) คือ อ.วีระชัย อ.พิเชษฐ อ.สุนันท์ อ.วีรมลล์","ที่ประชุมมีมติเห็นชอบตามเสนอคือให้แต่งตั้งอาจารย์ประจำหลักสูตรและคณะกรรมการบริหารหลักสูตรเป็นชุดเดียวกันและได้พิจารณาอาจารย์ประจำหลักสูตรชุดใหม่ดังนี้ \nหลักสูตร วท.บ.(เคมี)  อ.วิไลลักษณ์ (ประธาน) อ.วุฒิพงษ์ อ.วีนาวรรณ อ. นวลจันทร์ อ.กมลทิพย์ และศรัณย์ธรและพงษ์ศักดิ์ เป็นผู้ช่วยเลขาฯ\nหลักสูตร วท.ม.(เคมี)  อ.อาทร ลอยสรวงสิน (ประธาน)   อ. พจมาลย์ พูลมี  อ. บุญเดช เบิกฟ้า อ. วันเพ็ญ เหล่าศรีไพบูลย์ อ.นงพงา จรัสโสภณ\nหลักสูตร ปร.ด.(เคมี) จะมี อ.ปิติ อ. วรางคณา และ อ. จงรักษ์"]
["วาระที่ 4","เรื่องอื่น ๆ"]
[4.0999999999999996,"ประชุมครั้งต่อไป วันพฤหัสบดีที่ 7 กรกฏาคม 2554"]

{"sheet":"2554-6","index":9,"n_rows":34,"n_cols":4,"rows_kept":34,"cut":false,"hidden":false,"merged":[[11,2,11,3],[39,2,39,3],[21,1,21,3],[25,1,25,3],[26,1,26,3],[30,1,30,3],[0,1,0,3],[19,0,19,3],[6,2,6,3],[7,2,7,3],[8,2,8,3],[9,2,9,3],[3,0,3,3],[4,0,4,3],[18,0,18,3],[13,2,13,3],[14,2,14,3],[1,0,1,3],[2,0,2,3],[15,2,15,3],[16,2,16,3],[10,2,10,3]]}
[]
["รายงานการประชุมคณะกรรมการบริหารโครงการจัดตั้งสายวิชาเคมี"]
["ครั้งที่ 6/2554  วันพฤหัสบดีที่ 7 กรกฎาคม 2554"]
["ห้อง SC5-103 คณะศิลปศาสตร์และวิทยาศาสตร์"]
["เวลา 12.00-13.10 น. รับรองรายงานการประชุมเมื่อ  11 สิงหาคม 2554"]
["ผู้เข้าประชุม"]
[1,"อ.ดร.ปิติ ตรีสุกล","ประธานฯโครงการจัดตั้งสายวิชาเคมี"]
[2,"รศ.ดร.จงรักษ์ แก้วประสิทธิ์","รองประธานฯโครงการจัดตั้งสายวิชาเคมี"]
[3,"อ.นวลจันทร์ มัจฉริยกุล","กรรมการ"]
[4,"อ.ดร.วันเพ็ญ เหล่าศรีไพบูลย์","กรรมการและรักษาการผู้ประสานงานสาขาเคมีอินทรีย์"]
[5,"อ.ดร.กมลทิพย์ ขัตติยะวงศ์","กรรมการและรักษาการผู้ประสานงานสาขาเคมีพอลิเมอร์และเคมีอุตสาหกรรม"]
[6,"อ.วิไลลักษณ์ ขวัญยืน","กรรมการและรักษาการผู้ประสานงานสาขาเคมีวิเคราะห์"]
["ผู้ไม่เข้าประชุม"]
[1,"ผศ.ดร.ฐิติยา แซ่ปัง","กรรมการและรักษาการผู้ประสานงานสาขาเคมีสิ่งแวดล้อม"]
[2,"อ.ดร.อาทร ลอยสรวงสิน","กรรมการและรักษาการผู้ประสานงานสาขาเคมีเชิงฟิสิกส์"]
[3,"อ.ดร.บุญเดช เบิกฟ้า*","กรรมการและเลขานุการ"]
[4,"อ.ดร.วีนาวรรณ สมผล*","กรรมการและรักษาการผู้ประสานงานสาขาเคมีอนินทรีย์"]
[null,"* ติดราชการ"]
["รายงานการประชุมคณะกรรมการบริหารโครงการจัดตั้งสายวิชาเคมี ครั้งที่ 6/2554 "]
["วันที่ 7 กรกฏาคม 2554 เริ่มประชุมเวลา 12.00 น. ปิดประชุมเวลา 13.10 น. "]
["วาระ","เรื่อง","รายละเอียด","มติของที่ประชุม"]
["วาระที่ 1","เรื่องแจ้งเพื่อทราบ"]
[1.1000000000000001,"ความคืบหน้าการแต่งตั้งอาจารย์ประจำหลักสูตร","ประธานฯแจ้งว่าได้ขออนุมัติแต่งตั้งอาจารย์ประจำหลักสูตร วท.ม.(เคมี) อาจารย์ประจำหลักสูตรและกรรมการบริหารหลักสูตร วท.บ.(เคมี) ตามมติของที่ประชุมคณะกรรมการบริหารฯ ครั้งที่ 5/2554 แล้ว","รับทราบ"]
[1.2,"การเสนอรายชื่อคณะกรรมการจัดการความรู้","ประธานแจ้งฯว่าได้เสนอรายชื่อคณะกรรมการจัดการความรู้ของสาขาเคมี ประกอบด้วย ประธาน อ.นวลจันทร์ อ.วันเพ็ญ อ.บุญเดช คุณเกศินี หัวข้อเรื่องหน้าที่ของผู้จัดการวิชาในการจัดการเรียนการสอน","รับทราบ"]
[1.3,"เสนอแต่งตั้งอนุกรรมการฝ่ายประกันคุณภาพ ฯ ","อ.วิไลลักษณ์เสนอต่อประธานฯเพื่อขอแต่งตั้งอนุกรรมการฝ่ายประกันคุณภาพโดยประกอบด้วย\n1. อ.วิไลลักษณ์ ขวัญยืน    ประธาน ฯ\n2. อ.พจมาลย์ พูลมี กรรมการ\n3. อ.นงพงา จรัสโสภณ กรรมการและเลขานุการ\n4. คุณเกศินี บุณรัตน์ประพันธ์ ผู้ช่วยเลขานุการ\n5. คุณวาสนา ประทุมโถม ผู้ช่วยเลขานุการ","รับทราบ"]
["วาระที่ 2","รับรองรายงานการประชุม ครั้งที่ 5/2554 วันที่ 9 มิถุนายน 2554"]
["วาระที่ 3","เรื่องเพื่อพิจารณา"]
[3.1,"การจัดการการเงินสวัสดิการของโครงการ","อ.นวลจันทร์ แจ้งยอดเงินสวัสดิการของโครงการจัดตั้งฯ\nบัญชีธนาคาร ธ.ไทยพาณิชย์ กำแพงแสน รวม 2 บัญชี คือ\n- 769 226876-5 (ค่าสอน วศ.ภาคพิเศษ) ยอดปัจุบัน 82,866.78 บ.\n- 769 221442-3 (เครื่องแก้ว) ยอดปัจุบัน 111,432.70 บ.\nเงินสด สวัสดิการ (7,508.50) บริการวิชาการ (15,115) e-learning (9,000) เงินเหลือเบิกโครงการ(7,942) เสื้อยืด (12,469) งานเกษตร กพส. (3,828) \nประธานได้ให้ที่ประชุมพิจารณาการจัดการ","ที่ประชุมมีมติให้แยกเงินใส่ใน 2 บัญชี และให้ทำบัญชีแสดงรายละเอียดรายรับ-จ่าย\n1) บัญชี 769226876-5 มีจุดประสงค์สำหรับการเรียนการสอน ครุภัณฑ์ : วศ.พิเศษ บริการวิชาการ e-learning เหลือจ่ายจากโครงการ\n2) บัญชี 769221442-3 เป็นเงินสวัสดิการ-เงินสำรองจ่าย : เครื่องแก้ว-เสื้อกาวน์ สวัสดิการ(อาจารย์-บุคลากร) ค่าเสื้อยืด-งานเกษตร (จะมอบให้ชุมนุมนิสิตเคมี) "]
[3.2,"การปรับแผนเพื่อซื้อครุภัณฑ์เครื่องชั่ง 4 ตำแหน่ง","ประธานฯแจ้งว่าเครื่องชั่งสี่ตำแหน่งของโครงการฯเสียรวม 3 เครื่อง และค่าใช้จ่ายในการซ่อมแซมมีราคาสูงจึงเสนอให้ที่ประชุมพิจารณาการปรับแผนเพื่อซื้อเครื่องชั่งทดแทนจำนวน 1 เครื่องโดยใช้เงินในหมวดงบรายจ่ายอื่นที่เหลือจ่ายจากโครงการที่ดำเนินการแล้ว","ที่ประชุมมีมติเห็นชอบให้ปรับแผนการใช้เงินตามที่เสนอและมอบหมายให้ประธานและผู้เกี่ยวข้องจัดหาเครื่องชั่งรุ่นที่เหมาะสมและให้อยู่ในวงเงินที่สามารถปรับแผนได้"]
[3.3,"เร่งรัดการดำเนินงานโครงการที่เสนอในปีงบประมาณ 2554","ประธานฯแจ้งว่าตามที่โครงการได้รับอนุมัติให้จัดโครงการโดยใช้งบประมาณรายได้/โครงการวิศวกรรม(ภาคพิเศษ) ปี 2554 รวม 11 โครงการ ยังเหลือโครงการที่ยังไม่ได้เริ่มดำเนินการรวม 3 โครงการคือ 1) โครงการฝึกงาน 2)โครงการเสริมสร้างการใช้โปรแกรม Excel และ Word สำหรับงานวิจัย และ 3) โครงการอบรมเชิงปฏิบัติการระบบมาตรฐานที่เกี่ยวข้องในห้องปฏิบัติการเบื้องต้น และมีโครงการอื่นที่ยังไม่แล้วเสร็จ ","ที่ประชุมรับทราบและมีมติให้ผู้เกี่ยวข้องเร่งดำเนินการหรือพิจารณาปรับแผนการใช้เงินเพื่อให้ทันในปีงบประมาณ 2554"]
["วาระที่ 4","เรื่องอื่น ๆ"]
[4.0999999999999996,"ความคืบหน้าโครงการปัจฉิมนิเทศ","ประธานหลักสูตร วท.บ.(เคมี) แจ้งให้ทราบความคืบหน้าของการจัดโครงการปัจฉิมนิเทศ ปี 2554 ว่าขณะนี้อยู่ในระหว่างการสรุปยอดค่าใช้จ่ายเพื่อยื่นเบิกต่อคณะ","ที่ประชุมรับทราบ"]
[4.2,"ความคืบหน้าการจัดตั้งชุมนุมเคมี","ประธานหลักสูตร วท.บ.(เคมี) แจ้งความคืบหน้าการจัดตั้งชุมนุมเคมีของนิสิตหลักสูตร วท.บ.(เคมี) ว่าอยู่ในระหว่างการเสนอขอจัดตั้งต่อคณะโดยจะมีนายอธิกิจ(ปี3) เป็นประธานและมีอาจารย์ที่ปรึกษาชุมนุม 4 ท่านคือ อ.วิไลลักษณ์ อ.วีนาวรรณ อ.กมลทิพย์ และ อ.นวลจันทร์","ที่ประชุมรับทราบ"]
[4.3,"การซื้อ graphite tube สำหรับเครื่อง AA","อ.วิไลลักษณ์แจ้งว่านิสิตระดับบัณฑิตศึกษาในหลักสูตรอื่นที่มาขอใช้เครื่อง AA ได้เสนอจะซื้อ graphite  tube ร่วมกับโครงการฯ โดยออกเงินฝ่ายละครึ่งเพื่อใช้กับเครื่อง AA ของโครงการ จึงขอให้ที่ประชุมพิจารณาความเหมาะสม ","ที่ประชุมมีมอบหมายให้ อ.อาทร และ อ.วีนาวรรณช่วยพิจารณาตั้งเกณฑ์การเก็บค่าใช้จ่ายและค่าวัสดุสิ้นเปลืองสำหรับการขอใช้เครื่องมือ/อุปกรณ์ของโครงการฯ เพื่อให้เป็นมาตรฐานเดียวกัน"]

{"sheet":"Agenda","index":10,"n_rows":29,"n_cols":15,"rows_kept":29,"cut":false,"hidden":false,"merged":[[2,0,5,0],[8,0,12,0],[14,0,18,0],[19,0,23,0],[24,0,28,0],[7,0,7,1]]}
["วาระการประชุมคณะกรรมการบริหารงานโครงการจัดตั้งสายวิชาเคมี"]
["Agenda","ID","A56-1","A56-2","A56-3","A56-4","A56-5","A56-6","A56-7","A56-8","A56-9","A56-10","A56-11","A56-12"]
["รายละเอียด","การประชุม","1/2556","2/2556","3/2556","4/2556"]
[null,"วันที่","9 ม.ค. 56","13 ก.พ. 56","13 มี.ค. 56","10 เม.ย. 56","8 พ.ค. 56","12 มิ.ย. 56"]
[null,"ห้อง","SC1-104","SC1-104","SC1-104","SC1-104","SC1-104","SC1-104"]
[null,"เวลา","12:00-13:15","12:00-13:00","12:00-13:00","12:00-13:00","12:00-13:00","12:00-13:00"]
[null,"หมายเหตุ"]
["วาระ",null,"เรื่อง",null,null,null,null,null,null,null,null,null,null,null,"รายละเอียด"]
["1 เรื่องแจ้งเพื่อทราบ","1.1","แจ้งคำสั่งแต่งตั้งคณะกรรมการบริหารงานโครงการจัดตั้งสายวิชาเคมี"]
[null,"1.2","สรุปการประชุมกรรมการประจำคณะ ศวท. ครั้งที่ 12/2555"]
[null,"1.3","ชี้แจงการเสนอวาระการประชุม และการเสนอปัญหาและข้อเสนอแนะผ่านเว็บไซต์ "]
[null,"1.4"]
[null,"1.5"]
["2 รับรองรายงานการประชุม",null,"-"]
["3 เรื่องเพื่อพิจารณา","3.1","พิจารณามอบหมายผู้รับผิดชอบโครงการงบรายได้ 2556"]
[null,"3.2","พิจารณาการเสนอข้อมูลรายได้แต่ละสาขาและจัดเตรียมเสนอโครงการปี 2557"]
[null,"3.3","การจัดกิจกรรมปีใหม่"]
[null,"3.4","โบนัส จนท. ปี 2556"]
[null,"3.5","พิจารณาหน้าที่รับผิดชอบของแต่ประธานคณะกรรมการแต่ละฝ่ายและรักษาการหัวหน้าสาขาวิชา"]
["4 เรื่องสืบเนื่อง","4.1","-"]
[null,"4.2"]
[null,"4.3"]
[null,"4.4"]
[null,"4.5"]
["5 เรื่องอื่น ๆ","5.1"]
[null,"5.2"]
[null,"5.3"]
[null,"5.4"]
[null,"5.5"]

{"sheet":"2556-1","index":11,"n_rows":49,"n_cols":8,"rows_kept":49,"cut":false,"hidden":false,"merged":[[24,1,24,3],[29,1,29,3],[30,1,30,3],[38,1,38,3],[51,2,51,3],[44,1,44,3],[22,0,22,3],[21,0,21,3],[5,0,5,3],[0,0,0,1],[1,2,1,3],[2,0,2,3],[3,0,3,3],[4,0,4,3]]}
["Report meeting #",null,"A56-1","To be approved (x) >>",null,null,"x"]
[null,null,{"$f":"IF(G1=\"x\",\"เอกสารประกอบ #1  ประชุม กก.บริหาร เคมี \"&VLOOKUP(\"การประชุม\",Agenda_tab,MATCH(C1,Agenda_ID,0)+1,0),\"\")","v":"เอกสารประกอบ #1  ประชุม กก.บริหาร เคมี 2/2556"},null,null,null,null,{"$f":"VLOOKUP(\"วันที่\",Agenda_tab,MATCH(C1,Agenda_ID,0),0)","v":"9 ม.ค. 56"}]
["รายงานการประชุมคณะกรรมการบริหารงานโครงการจัดตั้งสายวิชาเคมี"]
[{"$f":"\"ครั้งที่ \"&VLOOKUP(\"การประชุม\",Agenda_tab,MATCH(C1,Agenda_ID,0),0)&\"    วันที่ \"&VLOOKUP(\"วันที่\",Agenda_tab,MATCH(C1,Agenda_ID,0),0)","v":"ครั้งที่ 1/2556    วันที่ 9 ม.ค. 56"}]
[{"$f":"\"ห้อง \"&VLOOKUP(\"ห้อง\",Agenda_tab,MATCH(C1,Agenda_ID,0),0)&\" คณะศิลปศาสตร์และวิทยาศาสตร์    เวลา \"&VLOOKUP(\"เวลา\",Agenda_tab,MATCH(C1,Agenda_ID,0),0)","v":"ห้อง SC1-104 คณะศิลปศาสตร์และวิทยาศาสตร์    เวลา 12:00-13:15"}]
[{"$f":"\"       (รับรองรายงานการประชุมวันที่ \"&IF(G1=\"x\",\"__________________________ )\",VLOOKUP(\"วันที่\",Agenda_tab,MATCH(C1,Agenda_ID,0)+1,0)&\")\")","v":"       (รับรองรายงานการประชุมวันที่ __________________________ )"}]
["ผู้เข้าประชุม",null,null,null,0,0]
[{"$f":"IF(ISNUMBER(A7),A7,0)+1","v":1},"ประธานคณะกรรมการดำเนินงานโครงการจัดตั้งสายวิชาเคมี (อ.ดร.ปิติ ตรีสุกล)",null,"ประธาน",1,{"$f":"IF(G8=\"x\",E8+20,E8)","v":1}]
[{"$f":"IF(ISNUMBER(A8),A8,0)+1","v":2},"รศ.ดร.จงรักษ์ แก้วประสิทธิ์",null,"รองประธาน",2,{"$f":"IF(G9=\"x\",E9+20,E9)","v":2}]
[{"$f":"IF(ISNUMBER(A9),A9,0)+1","v":3},"ประธานคณะกรรมการฝ่ายธุรการ การเงิน และสวัสดิการ (อ.นวลจันทร์ มัจฉริยกุล)",null,"กรรมการ",3,{"$f":"IF(G10=\"x\",E10+20,E10)","v":3}]
[{"$f":"IF(ISNUMBER(A10),A10,0)+1","v":4},"ประธานคณะกรรมการฝ่ายเครื่องมือ ปฏิบัติการและวิจัย (อ.ดร.วันเพ็ญ เหล่าศรีไพบูลย์)",null,"กรรมการ",4,{"$f":"IF(G11=\"x\",E11+20,E11)","v":4}]
[{"$f":"IF(ISNUMBER(A11),A11,0)+1","v":5},"ประธานคณะกรรมการฝ่ายวิชาการและพัฒนาหลักสูตร (อ.ดร.นงพงา จรัสโสภณ)",null,"กรรมการ",5,{"$f":"IF(G12=\"x\",E12+20,E12)","v":5}]
[{"$f":"IF(ISNUMBER(A12),A12,0)+1","v":6},"ประธานคณะกรรมการฝ่ายบริการวิชาการและกิจการพิเศษ (ผศ.ดร.ฐิติยา แซ่ปัง)",null,"กรรมการ",6,{"$f":"IF(G13=\"x\",E13+20,E13)","v":6}]
[{"$f":"IF(ISNUMBER(A13),A13,0)+1","v":7},"รักษาการผู้ประสานงานสาขาวิชาเคมีอนินทรีย์ (ผศ.ดร. ฐิติยา แซ่ปัง)",null,"กรรมการ",7,{"$f":"IF(G14=\"x\",E14+20,E14)","v":7}]
[{"$f":"IF(ISNUMBER(A14),A14,0)+1","v":8},"รักษาการผู้ประสานงานสาขาวิชาเคมีอินทรีย์ (อ.ดร. วีนาวรรณ สมผล)",null,"กรรมการ",8,{"$f":"IF(G15=\"x\",E15+20,E15)","v":8}]
[{"$f":"IF(ISNUMBER(A15),A15,0)+1","v":9},"รักษาการผู้ประสานงานสาขาวิชาเคมีประยุกต์และเคมีโพลิเมอร์ (อ.ดร. สุนันท์ ทิพย์ทิพากร)",null,"กรรมการ",10,{"$f":"IF(G16=\"x\",E16+20,E16)","v":10}]
[{"$f":"IF(ISNUMBER(A16),A16,0)+1","v":10},"รักษาการผู้ประสานงานสาขาวิชาเคมีเชิงฟิสิกส์ (อ.ดร. บุญเดช เบิกฟ้า)",null,"กรรมการและเลขานุการ",11,{"$f":"IF(G17=\"x\",E17+20,E17)","v":11}]
[{"$f":"\"ผู้ไม่เข้าประชุม       \"&IF(F18=MAX($F$5:$F$21),\"-\",\"\")","v":"ผู้ไม่เข้าประชุม       "},null,null,null,0,20]
[{"$f":"IF(ISNUMBER(A18),A18,0)+1","v":1},"รักษาการผู้ประสานงานสาขาวิชาเคมีวิเคราะห์และเคมีสิ่งแวดล้อม (อ.ดร. วีรมลล์ ไวลิขิต)",null,"กรรมการ",9,{"$f":"IF(G19=\"x\",E19+20,E19)","v":29},"x"]
[]
[]
[{"$f":"\"รายงานการประชุมคณะกรรมการบริหารโครงการจัดตั้งสายวิชาเคมี ครั้งที่ \"&VLOOKUP(\"การประชุม\",Agenda_tab,MATCH(C1,Agenda_ID,0),0)","v":"รายงานการประชุมคณะกรรมการบริหารโครงการจัดตั้งสายวิชาเคมี ครั้งที่ 1/2556"}]
[{"$f":"\"วันที่ \"&VLOOKUP(\"วันที่\",Agenda_tab,MATCH(C1,Agenda_ID,0),0)&\"  ประชุมเวลา \"&VLOOKUP(\"เวลา\",Agenda_tab,MATCH(C1,Agenda_ID,0),0)&\" น.\"","v":"วันที่ 9 ม.ค. 56  ประชุมเวลา 12:00-13:15 น."}]
["วาระ","เรื่อง","รายละเอียด","มติของที่ประชุม"]
["วาระที่ 1","เรื่องแจ้งเพื่อทราบ"]
["1.1",{"$f":"IF(ISTEXT(A26),VLOOKUP(A26,Agenda_tab,MATCH(C$1,Agenda_ID,0),0),\"\")","v":"แจ้งคำสั่งแต่งตั้งคณะกรรมการบริหารงานโครงการจัดตั้งสายวิชาเคมี"},"คำสั่ง ศวท. 292/2555 วันที่ 20 ธ.ค. 2555 เรื่องแต่งตั้งคณะกรรมการบริหารงานโครงการจัดตั้งสายวิชาเคมี","ที่ประชุมรับทราบ"]
["1.2",{"$f":"IF(ISTEXT(A27),VLOOKUP(A27,Agenda_tab,MATCH(C$1,Agenda_ID,0),0),\"\")","v":"สรุปการประชุมกรรมการประจำคณะ ศวท. ครั้งที่ 12/2555"},"1) คณะผู้บริหารได้แจ้งเกณฑ์การพิจารณาความดีความชอบในเบื้องต้น โดยจะได้แจ้งรายละเอียดให้บุคลากรทราบต่อไป\n2) คณบดีให้จัดสรรเงินค่าธรรมเนียมคณะให้หลักสูตรบัณฑิตศึกษา 100% และสนับสนุนเพิ่มเติมหลักสูตรละ 100,000 บาท และเพิ่มเติมอีก 100,000 หากมีนิสิต>10 คน\n3) การแก้ไขคะแนน (KU7) ผู้จัดการรายวิชานั้นจะต้องมาชี้แจงในที่ประชุม กก.ประจำคณะ\n4) คณะกำหนดวันจัดโครงการ Open House เทาเงิน วันที่ 16-18 ส.ค. 2556  โดยมี การบรรยาย ประชุมวิชาการ  Open House การจัดมหกรรมสินค้า และให้แต่ละหน่วยงานส่งตัวแทนเพื่อเป็นคณะกรรมการจัดงาน\n5) ยกเลิกตำแหน่งรองคณบดีฝ่ายวิชาการ และมีการแต่งตั้ง รองคณบดีฝ่ายวิทยาศาสตร์ และรองคณบดีฝ่ายศิลปศาสตร์แทน และมีการเปลี่ยนแปลงตำแหน่งอี่น ๆ ด้วย \n","ที่ประชุมรับทราบ"]
["1.3",{"$f":"IF(ISTEXT(A28),VLOOKUP(A28,Agenda_tab,MATCH(C$1,Agenda_ID,0),0),\"\")","v":"ชี้แจงการเสนอวาระการประชุม และการเสนอปัญหาและข้อเสนอแนะผ่านเว็บไซต์ "},"กำหนดการประชุมคณะกรรมการบริหารทุกวันพุธที่สองของเดือน และให้เสนอวาระการประชุมก่อนการประชุม 2 วัน โดยผ่านเว็บไซต์\nhttp://pirun.ku.ac.th/~faasptt/ChemAdminBoard.html\nและสามารถส่งปัญหาหรือข้อเสนอแนะผ่านเว็บไซต์ดังกล่าวได้ด้วย","ที่ประชุมรับทราบ"]
[null,{"$f":"IF(ISTEXT(A29),VLOOKUP(A29,Agenda_tab,MATCH(C$1,Agenda_ID,0),0),\"\")","v":""}]
["วาระที่ 2",{"$f":"\"รับรองรายงานการประชุม\"& IF(E30<>\"x\",\" ครั้งที่ \"&VLOOKUP(\"การประชุม\",Agenda_tab,MATCH(C1,Agenda_ID,0)-1,0)&\" วันที่ \"&VLOOKUP(\"วันที่\",Agenda_tab,MATCH(C1,Agenda_ID,0)-1,0)&\"(เอกสารแนบ#\"&F30&\")\",\" ---\")","v":"รับรองรายงานการประชุม ---"},null,null,"x",1]
["วาระที่ 3","เรื่องเพื่อพิจารณา"]
["3.1",{"$f":"IF(ISTEXT(A32),VLOOKUP(A32,Agenda_tab,MATCH(C$1,Agenda_ID,0),0),\"\")","v":"พิจารณามอบหมายผู้รับผิดชอบโครงการงบรายได้ 2556"},"ประธานโครงการฯเคมีได้ขอให้ที่ประชุมพิจารณาโครงการงบรายได้ปี 2556 รวม 25 โครงการ  โดยเป็นงบรายได้เคมี 23 โครงการ และงบส่วนกลาง (วศ.พิเศษอยู่ในหมวดค่าสอน) 2 โครงการ ตามเอกสารแนบ #4 และขอให้แต่ละฝ่ายที่เกี่ยวข้องพิจารณาผู้รับผิดชอบโครงการ\nโดยได้มีผู้เสนอว่าในการเสนอโครงการครั้งต่อ ๆ ไป น่าจะยุบรวมโครงการทัศนศึกษาในรายวิชาเข้ากับโครงการทัศนศึกษาและดูงานของหลักสูตรเพื่อให้ประหยัดค่าใช้จ่าย ","ที่ประชุมมีมติเห็นชอบ โดยในส่วนของโครงการทัศนศึกษาของรายวิชาต่าง ๆ ให้พิจารณากลุ่มเป้าหมายและวัตถุประสงค์ของโครงการ หากสอดคล้องกันก็ให้ยุบรวมโครงการได้ตามความเหมาะสม"]
["3.2","พิจารณาการเสนอข้อมูลรายได้แต่ละสาขาและจัดเตรียมเสนอโครงการปี 2557","ประธานโครงการฯเคมีแจ้งให้แต่ละสาขาประมาณการรายรับจากรายวิชาที่สอน โดยแจ้งจำนวนหมู่ จำนวนนิสิต ในส่วนของวิชาพื้นฐานให้ประธานฝ่ายวิชาการเป็นผู้รวบรวม \nและขอให้ประธานคณะกรรมการแต่ละฝ่ายและรักษาการหัวหน้าสาขาพิจารณาเสนอโครงการ/กิจกรรมในส่วนที่เกี่ยวข้องสำหรับปีงบประมาณ 2557 เพื่อรวบรวมและเสนอคณะ ","ที่ประชุมมีมติให้ส่งข้อมูลประมาณการรายรับและโครงการต่าง ๆ สำหรับงบรายได้ 57 ภายใน 23 ม.ค. 56 ที่ประธานโครงการฯเคมี"]
["3.3",{"$f":"IF(ISTEXT(A34),VLOOKUP(A34,Agenda_tab,MATCH(C$1,Agenda_ID,0),0),\"\")","v":"การจัดกิจกรรมปีใหม่"},"ประธานโครงการฯเคมี ขอให้ที่ที่ประชุมพิจารณาการจัดกิจกรรมเลี้ยงปีใหม่ ในเบื้องต้นจะใช้งบประมาณจากโครงการต่าง ๆ ที่เกี่ยวข้องคือ โครงการสัมมาฐิทิ (45,000) โครงการจิตอาสา (5,000) และโครงการนิสิตพบอาจารย์ในหลักสูตร (7,000)","ที่ประชุมมีมติให้มีการจัดมีการกิจกรรมเลี้ยงปีใหม่ ในวันเสาร์ที่ 19 ม.ค. 56  โดยมอบหมายให้ อ.นวลจันทร์ เป็นผู้ประสานงาน โดยมีกิจกรรม ทำบุญเลี้ยงพระ นิสิตพบอาจารย์ในหลักสูตร big-cleaning day แข่งกีฬา และงานเลี้ยงโต๊ะจีน โดยให้นิสิตมีส่วนร่วมในการวางแผนและจัดงานด้วย"]
["3.4",{"$f":"IF(ISTEXT(A35),VLOOKUP(A35,Agenda_tab,MATCH(C$1,Agenda_ID,0),0),\"\")","v":"โบนัส จนท. ปี 2556"},"ประธานโครงการฯเคมี เสนอให้พิจารณาการให้โบนัสประจำปีแก่เจ้าหน้าที่สาขาเคมีเพื่อเป็นขวัญกำลังใจในการทำงาน โดยใช้เกณฑ์เดิม คือใช้เงิน 50% จากเงินสวัสดิการจากปฏิบัติการเคมีภาคพิเศษส่วนของอาจารย์","ที่ประชุมเห็นชอบให้ใช้เกณฑ์เดิมในการพิจารณาโบนัสเจ้าหน้าที่"]
["3.5",{"$f":"IF(ISTEXT(A36),VLOOKUP(A36,Agenda_tab,MATCH(C$1,Agenda_ID,0),0),\"\")","v":"พิจารณาหน้าที่รับผิดชอบของแต่ประธานคณะกรรมการแต่ละฝ่ายและรักษาการหัวหน้าสาขาวิชา"},"ประธานโครงการฯเคมี ขอให้แต่คณะกรรมการแต่ละฝ่าย จัดประชุมอย่างน้อยเดือนละครั้ง และให้เสนอแผนการดำเนินการและกิจกรรม รวมถึงปัญหาที่เกี่ยวข้องและแนวทางแก้ไข\nและให้แต่สาขาวิชาจัดประชุมอย่างน้อยสองเดือนครั้ง โดยให้รวบรวมข้อมูลรายวิชาที่รับผิดชอบ ทั้งนี้ให้กำหนดวันประชุมและส่งรายงานการประชุมทุกครั้ง ","ที่ประชุมเห็นชอบ และให้ประธานฯเคมีพิจารณาแนวทางในการจัดสรรงบประมาณสำหรับอาหารว่างในการประชุมของแต่ละคณะกรรมการต่อไป"]
[null,""]
[null,""]
["วาระที่ 4","เรื่องสืบเนื่อง"]
["4.1",{"$f":"IF(ISTEXT(A40),VLOOKUP(A40,Agenda_tab,MATCH(C$1,Agenda_ID,0),0),\"\")","v":"-"}]
[null,{"$f":"IF(ISTEXT(A41),VLOOKUP(A41,Agenda_tab,MATCH(C$1,Agenda_ID,0),0),\"\")","v":""}]
[null,{"$f":"IF(ISTEXT(A42),VLOOKUP(A42,Agenda_tab,MATCH(C$1,Agenda_ID,0),0),\"\")","v":""}]
[null,{"$f":"IF(ISTEXT(A43),VLOOKUP(A43,Agenda_tab,MATCH(C$1,Agenda_ID,0),0),\"\")","v":""}]
[null,{"$f":"IF(ISTEXT(A44),VLOOKUP(A44,Agenda_tab,MATCH(C$1,Agenda_ID,0),0),\"\")","v":""}]
["วาระที่ 5","เรื่องอื่น ๆ"]
[null,{"$f":"IF(ISTEXT(A46),VLOOKUP(A46,Agenda_tab,MATCH(C$1,Agenda_ID,0),0),\"\")","v":""}]
[null,{"$f":"IF(ISTEXT(A47),VLOOKUP(A47,Agenda_tab,MATCH(C$1,Agenda_ID,0),0),\"\")","v":""}]
[null,{"$f":"IF(ISTEXT(A48),VLOOKUP(A48,Agenda_tab,MATCH(C$1,Agenda_ID,0),0),\"\")","v":""}]
[null,null,"ผู้พิมพ์รายงานการประชุม อ.บุญเดช เบิกฟ้า","ผู้ตรวจสอบรายงานการประชุม อ.ปิติ ตรีสุกล"]

{"sheet":"Main","index":12,"n_rows":49,"n_cols":7,"rows_kept":49,"cut":false,"hidden":false,"merged":[[44,1,44,3],[51,2,51,3],[21,0,21,3],[22,0,22,3],[24,1,24,3],[29,1,29,3],[30,1,30,3],[38,1,38,3],[0,0,0,1],[1,2,1,3],[2,0,2,3],[3,0,3,3],[4,0,4,3],[5,0,5,3]]}
["Report meeting #",null,"A56-2","To be approved (x) >>",null,null,"x"]
[null,null,{"$f":"IF(G1=\"x\",\"เอกสารประกอบ #1  ประชุม กก.บริหาร เคมี \"&VLOOKUP(\"การประชุม\",Agenda_tab,MATCH(C1,Agenda_ID,0)+1,0),\"\")","v":"เอกสารประกอบ #1  ประชุม กก.บริหาร เคมี 3/2556"}]
["รายงานการประชุมคณะกรรมการบริหารงานโครงการจัดตั้งสายวิชาเคมี"]
[{"$f":"\"ครั้งที่ \"&VLOOKUP(\"การประชุม\",Agenda_tab,MATCH(C1,Agenda_ID,0),0)&\"    วันที่ \"&VLOOKUP(\"วันที่\",Agenda_tab,MATCH(C1,Agenda_ID,0),0)","v":"ครั้งที่ 2/2556    วันที่ 13 ก.พ. 56"}]
[{"$f":"\"ห้อง \"&VLOOKUP(\"ห้อง\",Agenda_tab,MATCH(C1,Agenda_ID,0),0)&\" คณะศิลปศาสตร์และวิทยาศาสตร์    เวลา \"&VLOOKUP(\"เวลา\",Agenda_tab,MATCH(C1,Agenda_ID,0),0)","v":"ห้อง SC1-104 คณะศิลปศาสตร์และวิทยาศาสตร์    เวลา 12:00-13:00"}]
[{"$f":"\"       (รับรองรายงานการประชุมวันที่ \"&IF(G1=\"x\",\"__________________________ )\",VLOOKUP(\"วันที่\",Agenda_tab,MATCH(C1,Agenda_ID,0)+1,0)&\")\")","v":"       (รับรองรายงานการประชุมวันที่ __________________________ )"}]
["ผู้เข้าประชุม",null,null,null,0,0]
[{"$f":"IF(ISNUMBER(A7),A7,0)+1","v":1},"ประธานคณะกรรมการดำเนินงานโครงการจัดตั้งสายวิชาเคมี (อ.ดร.ปิติ ตรีสุกล)",null,"ประธาน",1,{"$f":"IF(G8=\"x\",E8+20,E8)","v":1}]
[{"$f":"IF(ISNUMBER(A8),A8,0)+1","v":2},"รศ.ดร.จงรักษ์ แก้วประสิทธิ์",null,"รองประธาน",2,{"$f":"IF(G9=\"x\",E9+20,E9)","v":2}]
[{"$f":"IF(ISNUMBER(A9),A9,0)+1","v":3},"ประธานคณะกรรมการฝ่ายธุรการ การเงิน และสวัสดิการ (อ.นวลจันทร์ มัจฉริยกุล)",null,"กรรมการ",3,{"$f":"IF(G10=\"x\",E10+20,E10)","v":3}]
[{"$f":"IF(ISNUMBER(A10),A10,0)+1","v":4},"ประธานคณะกรรมการฝ่ายวิชาการและพัฒนาหลักสูตร (อ.ดร.นงพงา จรัสโสภณ)",null,"กรรมการ",5,{"$f":"IF(G11=\"x\",E11+20,E11)","v":5}]
[{"$f":"IF(ISNUMBER(A11),A11,0)+1","v":5},"ประธานคณะกรรมการฝ่ายบริการวิชาการและกิจการพิเศษ (ผศ.ดร.ฐิติยา แซ่ปัง)",null,"กรรมการ",6,{"$f":"IF(G12=\"x\",E12+20,E12)","v":6}]
[{"$f":"IF(ISNUMBER(A12),A12,0)+1","v":6},"รักษาการผู้ประสานงานสาขาวิชาเคมีอนินทรีย์ (ผศ.ดร. ฐิติยา แซ่ปัง)",null,"กรรมการ",7,{"$f":"IF(G13=\"x\",E13+20,E13)","v":7}]
[{"$f":"IF(ISNUMBER(A13),A13,0)+1","v":7},"รักษาการผู้ประสานงานสาขาวิชาเคมีอินทรีย์ (อ.ดร. วีนาวรรณ สมผล)",null,"กรรมการ",8,{"$f":"IF(G14=\"x\",E14+20,E14)","v":8}]
[{"$f":"IF(ISNUMBER(A14),A14,0)+1","v":8},"รักษาการผู้ประสานงานสาขาวิชาเคมีวิเคราะห์และเคมีสิ่งแวดล้อม (อ.ดร. วีรมลล์ ไวลิขิต)",null,"กรรมการ",9,{"$f":"IF(G15=\"x\",E15+20,E15)","v":9}]
[{"$f":"IF(ISNUMBER(A15),A15,0)+1","v":9},"รักษาการผู้ประสานงานสาขาวิชาเคมีประยุกต์และเคมีโพลิเมอร์ (อ.ดร. สุนันท์ ทิพย์ทิพากร)",null,"กรรมการ",10,{"$f":"IF(G16=\"x\",E16+20,E16)","v":10}]
[{"$f":"IF(ISNUMBER(A16),A16,0)+1","v":10},"รักษาการผู้ประสานงานสาขาวิชาเคมีเชิงฟิสิกส์ (อ.ดร. บุญเดช เบิกฟ้า)",null,"กรรมการและเลขานุการ",11,{"$f":"IF(G17=\"x\",E17+20,E17)","v":11}]
[{"$f":"\"ผู้ไม่เข้าประชุม       \"&IF(F18=MAX($F$5:$F$21),\"-\",\"\")","v":"ผู้ไม่เข้าประชุม       "},null,null,null,0,20]
[{"$f":"IF(ISNUMBER(A18),A18,0)+1","v":1},"ประธานคณะกรรมการฝ่ายเครื่องมือ ปฏิบัติการและวิจัย (อ.ดร.วันเพ็ญ เหล่าศรีไพบูลย์)",null,"กรรมการ",4,{"$f":"IF(G19=\"x\",E19+20,E19)","v":24},"x"]
[]
[]
[{"$f":"\"รายงานการประชุมคณะกรรมการบริหารโครงการจัดตั้งสายวิชาเคมี ครั้งที่ \"&VLOOKUP(\"การประชุม\",Agenda_tab,MATCH(C1,Agenda_ID,0),0)","v":"รายงานการประชุมคณะกรรมการบริหารโครงการจัดตั้งสายวิชาเคมี ครั้งที่ 2/2556"}]
[{"$f":"\"วันที่ \"&VLOOKUP(\"วันที่\",Agenda_tab,MATCH(C1,Agenda_ID,0),0)&\"  ประชุมเวลา \"&VLOOKUP(\"เวลา\",Agenda_tab,MATCH(C1,Agenda_ID,0),0)&\" น.\"","v":"วันที่ 13 ก.พ. 56  ประชุมเวลา 12:00-13:00 น."}]
["วาระ","เรื่อง","รายละเอียด","มติของที่ประชุม"]
["วาระที่ 1","เรื่องแจ้งเพื่อทราบ"]
["1.1",{"$f":"IF(ISTEXT(A26),VLOOKUP(A26,Agenda_tab,MATCH(C$1,Agenda_ID,0),0),\"\")","v":0}]
["1.2",{"$f":"IF(ISTEXT(A27),VLOOKUP(A27,Agenda_tab,MATCH(C$1,Agenda_ID,0),0),\"\")","v":0}]
["1.3",{"$f":"IF(ISTEXT(A28),VLOOKUP(A28,Agenda_tab,MATCH(C$1,Agenda_ID,0),0),\"\")","v":0}]
[null,{"$f":"IF(ISTEXT(A29),VLOOKUP(A29,Agenda_tab,MATCH(C$1,Agenda_ID,0),0),\"\")","v":""}]
["วาระที่ 2",{"$f":"\"รับรองรายงานการประชุม\"& IF(E30<>\"x\",\" ครั้งที่ \"&VLOOKUP(\"การประชุม\",Agenda_tab,MATCH(C1,Agenda_ID,0)-1,0)&\" วันที่ \"&VLOOKUP(\"วันที่\",Agenda_tab,MATCH(C1,Agenda_ID,0)-1,0)&\"(เอกสารแนบ#\"&F30&\")\",\" ---\")","v":"รับรองรายงานการประชุม ครั้งที่ 1/2556 วันที่ 9 ม.ค. 56(เอกสารแนบ#1)"},null,null,null,1]
["วาระที่ 3","เรื่องเพื่อพิจารณา"]
["3.1",{"$f":"IF(ISTEXT(A32),VLOOKUP(A32,Agenda_tab,MATCH(C$1,Agenda_ID,0),0),\"\")","v":0}]
["3.2",0]
["3.3",{"$f":"IF(ISTEXT(A34),VLOOKUP(A34,Agenda_tab,MATCH(C$1,Agenda_ID,0),0),\"\")","v":0}]
["3.4",{"$f":"IF(ISTEXT(A35),VLOOKUP(A35,Agenda_tab,MATCH(C$1,Agenda_ID,0),0),\"\")","v":0}]
["3.5",{"$f":"IF(ISTEXT(A36),VLOOKUP(A36,Agenda_tab,MATCH(C$1,Agenda_ID,0),0),\"\")","v":0}]
[null,""]
[null,""]
["วาระที่ 4","เรื่องสืบเนื่อง"]
["4.1",{"$f":"IF(ISTEXT(A40),VLOOKUP(A40,Agenda_tab,MATCH(C$1,Agenda_ID,0),0),\"\")","v":0}]
[null,{"$f":"IF(ISTEXT(A41),VLOOKUP(A41,Agenda_tab,MATCH(C$1,Agenda_ID,0),0),\"\")","v":""}]
[null,{"$f":"IF(ISTEXT(A42),VLOOKUP(A42,Agenda_tab,MATCH(C$1,Agenda_ID,0),0),\"\")","v":""}]
[null,{"$f":"IF(ISTEXT(A43),VLOOKUP(A43,Agenda_tab,MATCH(C$1,Agenda_ID,0),0),\"\")","v":""}]
[null,{"$f":"IF(ISTEXT(A44),VLOOKUP(A44,Agenda_tab,MATCH(C$1,Agenda_ID,0),0),\"\")","v":""}]
["วาระที่ 5","เรื่องอื่น ๆ"]
[null,{"$f":"IF(ISTEXT(A46),VLOOKUP(A46,Agenda_tab,MATCH(C$1,Agenda_ID,0),0),\"\")","v":""}]
[null,{"$f":"IF(ISTEXT(A47),VLOOKUP(A47,Agenda_tab,MATCH(C$1,Agenda_ID,0),0),\"\")","v":""}]
[null,{"$f":"IF(ISTEXT(A48),VLOOKUP(A48,Agenda_tab,MATCH(C$1,Agenda_ID,0),0),\"\")","v":""}]
[null,null,"ผู้พิมพ์รายงานการประชุม อ.บุญเดช เบิกฟ้า","ผู้ตรวจสอบรายงานการประชุม อ.ปิติ ตรีสุกล"]

{"sheet":"ใบรายชื่อ","index":13,"n_rows":13,"n_cols":7,"rows_kept":13,"cut":false,"hidden":false,"merged":[]}
["ใบลงชื่อผู้เข้าร่วมประชุมคณะกรรมการบริหารงานโครงการจัดตั้งสายวิชาเคมี"]
["คณะกรรมการ","1/2556","2/2556","3/2556","4/2556","5/2556","6/2556"]
["ประธานคณะกรรมการดำเนินงานโครงการจัดตั้งสายวิชาเคมี (อ.ดร.ปิติ ตรีสุกล)"]
["รศ.ดร.จงรักษ์ แก้วประสิทธิ์"]
["ประธานคณะกรรมการฝ่ายธุรการ การเงิน และสวัสดิการ (อ.นวลจันทร์ มัจฉริยกุล)"]
["ประธานคณะกรรมการฝ่ายเครื่องมือ ปฏิบัติการและวิจัย (อ.ดร.วันเพ็ญ เหล่าศรีไพบูลย์)"]
["ประธานคณะกรรมการฝ่ายวิชาการและพัฒนาหลักสูตร (อ.ดร.นงพงา จรัสโสภณ)"]
["ประธานคณะกรรมการฝ่ายบริการวิชาการและกิจการพิเศษ (ผศ.ดร.ฐิติยา แซ่ปัง)"]
["รักษาการผู้ประสานงานสาขาวิชาเคมีอนินทรีย์ (ผศ.ดร. ฐิติยา แซ่ปัง)"]
["รักษาการผู้ประสานงานสาขาวิชาเคมีอินทรีย์ (อ.ดร. วีนาวรรณ สมผล)"]
["รักษาการผู้ประสานงานสาขาวิชาเคมีวิเคราะห์และเคมีสิ่งแวดล้อม (อ.ดร. วันเพ็ญ เหล่าศรีไพบูลย์)"]
["รักษาการผู้ประสานงานสาขาวิชาเคมีประยุกต์และเคมีโพลิเมอร์ (อ.ดร. สุนันท์ ทิพย์ทิพากร)"]
["รักษาการผู้ประสานงานสาขาวิชาเคมีเชิงฟิสิกส์ (อ.ดร. บุญเดช เบิกฟ้า)"]